Workbook

Sheet LookUp (hidden)
A1: County | B1: Local Gov Unit | F1: < 3,300
A2: Abbeville | F2: 3,301-10,000
A3: Aiken | F3: 10,001-50,000
A4: Allendale | F4: 50,001-100,000
A5: Anderson | F5: >100,000
A6: Bamberg
A7: Barnwell
A8: Beaufort
A9: Berkeley
A10: Calhoun
A11: Charleston
A12: Cherokee
A13: Chester
A14: Chesterfield
A15: Clarendon
A16: Colleton
A17: Darlington
A18: Dillon
A19: Dorchester
A20: Edgefield
A21: Fairfield
A22: Florence
A23: Georgetown
A24: Greenville
A25: Greenwood
A26: Hampton
A27: Horry
A28: Jasper
A29: Kershaw
A30: Lancaster
A31: Laurens
A32: Lee
A33: Lexington
A34: Marion
A35: Marlboro
A36: McCormick
A37: Newberry
A38: Oconee
A39: Orangeburg
A40: Pickens
A41: Richland
A42: Saluda
A43: Spartanburg
A44: Sumter
A45: Union
A46: Williamsburg
A47: York

Sheet Start
B1: SC Water Utility Viability Tool
B3: Updated January 2024

Sheet Output (hidden)
A1: SC Water Utility Viability Tool Results | C1: Date Completed: | D1: =TODAY() -> 45320 | E1: Version 1.1 January 2024
A2: Utility Name
A3: Viability Score | B3: =IF(SUM(H78:H80)>0,"Incomplete Assessment",SUM(D6:D72)/2) -> Incomplete Assessment
B5: Benchmark | C5: Response | D5: Viability Points Earned | E5: Maximum Potential Points | G5: Component Name
A6: Step 1. Infrastructure | D6: =SUM(D7:D27) -> 6 | E6: =SUM(E7:E27) -> 6
A7: Primary System Service Population | B7: > 10,000 | C7: =IF(G7="","",VLOOKUP(G7,N:O,2,0)) -> 0 | D7: =IF(OR(C7="< 3,300",C7="3,301-10,000",C7=""),0,6) -> 6 | E7: 6 | G7: cb_systemsize | N7: tb_age_pumpingtreatment
A8: Services Provided | B8: - | C8: =IF(G8="","",IF(AND(H8,J8),"Water & Sewer",IF(H8,"Water Only",IF(J8,"Sewer Only","")))) ->  | D8: - | E8: - | G8: cb_waterservice | H8: =VLOOKUP($G8,$N:$O,2,0) -> 0 | I8: cb_sewerservice | J8: =VLOOKUP($I8,$N:$O,2,0) -> 0 | N8: tb_age_distribution
A9: Water Service | C9: =IF(G9="","",VLOOKUP(G9,N:O,2,0)) ->  | N9: tb_age_ww_pumping
A10: Age of the majority of the water distribution system: | B10: 50 | C10: 0 | D10: =IF(C8="Water Only",IF(OR(C10>B10,C11>B11),0,6),IF(C8="Sewer Only","N/A","See Below")) -> See Below | E10: =IF(C8="Water Only",16,"-") -> - | G10: tb_age_distribution | N10: tb_age_collection
A11: Age of the majority of the water pumping and/or treatment assets: | B11: 30 | C11: 0 | G11: tb_age_pumpingtreatment | N11: UnemploymentState
A12: Has your water utility had any sanitary survey inspections in the past 5 years? | N12: PopulationChange_Label
A13: Unsatisfactory sanitary survey inspections? | B13: Zero | C13: 0 | D13: =IF(C8="Water Only",IF(SUM(C13:C15)=0,10,IF(SUM(C13:C15)<2,5,0)),IF(C8="Sewer Only","N/A","See Combined Below")) -> See Combined Below | G13: tb_w_unsat_inspections | N13: MedianHouseIncome_Label
A14: Notices of Violation for major public health violations and/or water quality violations (not routine or M/R NOVs) | C14: 0 | G14: tb_W_NOV | N14: PovertyRate_Label
A15: Consent or Administrative Orders? | C15: 0 | G15: tb_w_CAO | N15: UnemploymentRate_Label
A16: Monthly Residential Water Service Bill | B16: - | C16: 0 | G16: tb_WaterBill | N16: PopulationChangeUser
A17: Sewer Service | N17: MHIuser
A18: Age of the majority of the wastewater collection system: | B18: 50 | C18: 0 | D18: =IF(C8="Sewer Only",IF(OR(C18>B18,C19>B19),0,6),IF(C8="Water Only","N/A","See Below")) -> See Below | E18: =IF(C8="Sewer Only",16,"-") -> - | G18: tb_age_collection | N18: PovertyRateUser
A19: Age of the majority of the wastewater pumping and/or treatment assets: | B19: 30 | C19: 0 | G19: tb_age_ww_pumping | N19: UnemploymentUser
A20: Has your wastewater utility had any compliance inspections in the past 5 years? | N20: combo_County
A21: Notices of Violation for major public health violations and/or major sewer overflows (not routine or M/R NOVs) | B21: Zero | C21: 0 | D21: =IF(C8="Sewer Only",IF(SUM(C21:C22)=0,MIN(10,16-D18),IF(SUM(C21:C22)<2,5,0)),IF(C8="Water Only","N/A","See Combined Below")) -> See Combined Below | G21: tb_ww_NOV | N21: combo_CityTown
A22: Consent or Administrative Orders? | C22: 0 | G22: tb_ww_CAO | N22: PopChange_Eq
A23: Monthly Residential Sewer Service Bill | B23: - | C23: 0 | G23: tb_SewerBill | N23: PopulationChangeState
A24: Water & Sewer Service | N24: PovertyRateState
A25: Combined Non-Compliance Issues | B25: See above | C25: =IF(C8="Water & Sewer",SUM(C21:C22,C13:C15),"-") -> - | D25: =IF(C8="Water & Sewer",IF(C25=0,10,IF(C25=1,5,0)),"N/A") -> N/A | E25: =IF($C$8="Water & Sewer",10,"N/A") -> N/A | N25: MHIstate
A26: System Age (Distribution, Pumping, Collection, etc.) | B26: See above | C26: See above | D26: =IF(C8="Water & Sewer",IF(OR(C10>30,C11>50,C18>30,C19>50),0,6),"N/A") -> N/A | E26: =IF($C$8="Water & Sewer",6,"N/A") -> N/A | N26: MHI_eq
A27: Monthly Combined Service Bill | B27: - | C27: =IF(G27="","",VLOOKUP(G27,N:O,2,0)) -> 0 | G27: tb_CombinedBill | N27: PR_Eq
A28: Step 2. Managerial/Operational | C28: =IF(G28="","",VLOOKUP(G28,N:O,2,0)) ->  | D28: =SUM(D29:D34) -> 2 | E28: =SUM(E29:E34) -> 6 | N28: U_eq
A29: Do you have a current capital improvement plan? | B29: Yes | C29: =IF(G29="","",IF(H29,"Yes",IF(J29,"No",IF(NOT(OR(H29,J29)),"-","Check")))) -> - | D29: =IF(C29="Yes",E29,0) -> 0 | E29: 1 | G29: ob_CIP_yes | H29: =VLOOKUP(G29,N:O,2,0) -> 0 | I29: ob_CIP_no | J29: =VLOOKUP(I29,N:O,2,0) -> 0 | N29: ob_CIP_no
A30: Do you have an Asset Management Program? | B30: Yes | C30: =IF(G30="","",IF(H30,"Yes",IF(J30,"No",IF(NOT(OR(H30,J30)),"-","Check")))) -> - | D30: =IF(C30="Yes",E30,0) -> 0 | E30: 1 | G30: ob_AMP_yes | H30: =VLOOKUP(G30,N:O,2,0) -> 0 | I30: ob_AMP_no | J30: =VLOOKUP(I30,N:O,2,0) -> 0 | N30: ob_CIP_yes
A31: Are your system assets mapped in a GIS System? | B31: Yes | C31: =IF(G31="","",IF(H31,"Yes",IF(J31,"No",IF(NOT(OR(H31,J31)),"-","Check")))) -> - | D31: =IF(C31="Yes",E31,0) -> 0 | E31: 1 | G31: ob_GIS_yes | H31: =VLOOKUP(G31,N:O,2,0) -> 0 | I31: ob_GIS_no | J31: =VLOOKUP(I31,N:O,2,0) -> 0 | N31: ob_AMP_no
A32: How many key staff positions within the organization are vacant and have been vacant for more than 3 months? | B32: 0 | C32: =IF(G32="","",VLOOKUP(G32,N:O,2,0)) -> 0 | D32: =IF(C32>0,0,E32) -> 1 | E32: 1 | G32: tb_keystaffvacant | H32: =VLOOKUP(G32,N:O,2,0) -> 0 | N32: ob_AMP_yes
A33: How many seats on the governing body (board or council) are vacant and have been vacant for more than three months? | B33: 0 | C33: =IF(G33="","",VLOOKUP(G33,N:O,2,0)) -> 0 | D33: =IF(C33>0,0,E33) -> 1 | E33: 1 | G33: tb_councilvacant | H33: =VLOOKUP(G33,N:O,2,0) -> 0 | N33: ob_GIS_no
A34: Have the current members of your governing body (board or council) received training related to operation and management of a utility in the last 2 years? | B34: 0 | C34: =IF(G34="","",IF(H34,"None",IF(J34,"Some",IF(L34,"All",IF(NOT(OR(H34,J34,L34)),"-","Check"))))) -> - | D34: =IF(C34="All",E34,0) -> 0 | E34: 1 | G34: ob_training_no | H34: =VLOOKUP($G34,$N:$O,2,0) -> 0 | I34: ob_training_some | J34: =VLOOKUP($I34,$N:$O,2,0) -> 0 | K34: ob_training_all | L34: =VLOOKUP($K34,$N:$O,2,0) -> 0 | N34: ob_GIS_yes
A35: Step 3. Socio-Economics | C35: =IF(G35="","",VLOOKUP(G35,N:O,2,0)) ->  | D35: =SUM(D36:D40) -> 0 | E35: =SUM(E36:E40) -> 12 | N35: tb_councilvacant
A36: Primary Utility Service Area | B36: - | C36: =IF(G36="","",IF(H36<>0,H36,J36)) -> 0 | G36: combo_County | H36: =VLOOKUP($G36,$N:$O,2,0) -> 0 | I36: combo_CityTown | J36: =VLOOKUP($I36,$N:$O,2,0) -> 0 | N36: cb_keystaffvacant
A37: Population Change | B37: =J37 -> 0 | C37: =IF(G37="","",VLOOKUP(G37,N:O,2,0))/100 -> 0 | D37: =IF(C37>J37,E37,0) -> 0 | E37: 3 | G37: PopulationChangeUser | I37: PopulationChangeState | J37: =IF(I37="","",VLOOKUP(I37,N:O,2,0))/100 -> 0 | N37: cb_councilvacant
A38: Median Household Income | B38: =J38 -> 0 | C38: =IF(G38="","",VLOOKUP(G38,N:O,2,0)) -> 0 | D38: =IF(C38>J38,E38,0) -> 0 | E38: 3 | G38: MHIuser | I38: MHIstate | J38: =IF(I38="","",VLOOKUP(I38,N:O,2,0)) -> 0 | N38: ob_training_no
A39: Poverty Rate | B39: =J39 -> 0 | C39: =IF(G39="","",VLOOKUP(G39,N:O,2,0))/100 -> 0 | D39: =IF(C39<J39,E39,0) -> 0 | E39: 3 | G39: PovertyRateUser | I39: PovertyRateState | J39: =IF(I39="","",VLOOKUP(I39,N:O,2,0))/100 -> 0 | N39: ob_training_some
A40: Unemployment Rate | B40: =J40 -> 0 | C40: =IF(G40="","",VLOOKUP(G40,N:O,2,0))/100 -> 0 | D40: =IF(C40<J40,E40,0) -> 0 | E40: 3 | G40: UnemploymentUser | I40: UnemploymentState | J40: =IF(I40="","",VLOOKUP(I40,N:O,2,0))/100 -> 0 | N40: ob_training_all
A41: Step 4. Financial | C41: =IF(G41="","",VLOOKUP(G41,N:O,2,0)) ->  | D41: =SUM(D42:D72) -> 25 | E41: 60 | N41: tb_keystaffvacant
A42: Step 4a. Balance Sheet | N42: CB_WaterService
A43: Unrestricted Cash | B43: - | C43: =IF(VLOOKUP(G43,N:O,2,0)="","-",VLOOKUP(G43,N:O,2,0)) -> - | D43: - | E43: - | G43: tb_unrestrictedcash | N43: CB_SewerService
A44: Total Outstanding Long Term Debt | B44: - | C44: =IF(VLOOKUP(G44,N:O,2,0)="","-",VLOOKUP(G44,N:O,2,0)) -> - | D44: - | E44: - | G44: tb_TOLTD | N44: tb_w_CAO
A45: Net Plant Assets | B45: - | C45: =IF(VLOOKUP(G45,N:O,2,0)="","-",VLOOKUP(G45,N:O,2,0)) -> - | D45: - | E45: - | G45: tb_NPA | N45: tb_Compliance
A46: Step 4b. Income Statement | N46: tb_w_NOV
A47: Operating Revenue | B47: - | C47: =IF(VLOOKUP(G47,N:O,2,0)="","-",VLOOKUP(G47,N:O,2,0)) -> - | D47: - | E47: - | G47: tb_Revenue | N47: tb_w_unsat_inspections
A48: Operating Expenses | B48: - | C48: =IF(VLOOKUP(G48,N:O,2,0)="","-",VLOOKUP(G48,N:O,2,0)) -> - | D48: - | E48: - | G48: tb_Expenses | N48: tb_mgmt
A49: Annual Depreciation Expense | B49: - | C49: =IF(VLOOKUP(G49,N:O,2,0)="","-",VLOOKUP(G49,N:O,2,0)) -> - | D49: - | E49: - | G49: tb_ADE | N49: cb_systemsize
A50: Change in Net Assets | B50: Greater than $0 | C50: - | D50: =IF(C50>=0,E50,0) -> 5 | E50: 5 | G50: tb_change_in_net_assets | N50: tb_WaterBill
A51: Annual Interest Expense | B51: - | C51: - | D51: - | E51: - | G51: tb_annual_Interest_expense | N51: tb_SewerBill
A52: Step 4c. Statement of Cash Flows | N52: tb_CombinedBill
A53: Annual Debt Principal Payments | B53: - | C53: 0 | D53: - | E53: - | G53: tb_ADSP | N53: tb_unrestrictedcash
A54: Step 4d. Fund Transfers | N54: tb_TOLTD
A55: Transfers to/from General | B55: None | C55: =IF(G55="","",IF(H55,"Yes",IF(J55,"No",IF(NOT(OR(H55,J55)),"-","Check")))) -> - | D55: - | E55: - | G55: ob_transfers_yes | H55: =VLOOKUP($G55,$N:$O,2,0) -> 0 | I55: ob_transfers_no | J55: =VLOOKUP($I55,$N:$O,2,0) -> 0 | N55: tb_NPA
A56: Transfers from General | B56: None | C56: =IF(G56="","",IF(H56,"Yes",IF(J56,"No",IF(NOT(OR(H56,J56)),"-","Check")))) -> - | D56: =IF(AND(C56="No",C57="No",C58="No"),5,IF(C56="Yes",0,IF(C57="Yes",2,IF(C58="Yes",0)))) -> FALSE | E56: 5 | G56: ob_transfersfrom_yes | H56: =VLOOKUP($G56,$N:$O,2,0) -> 0 | I56: ob_transfersfrom_no | J56: =VLOOKUP($I56,$N:$O,2,0) -> 0 | N56: tb_revenue
A57: Transfers between 5% and 10% of Gross Revenues) | B57: None | C57: =IF(G57="","",IF(H57,"Yes",IF(J57,"No",IF(NOT(OR(H57,J57)),"-","Check")))) -> - | G57: ob_transfers_to_5_yes | H57: =VLOOKUP($G57,$N:$O,2,0) -> 0 | I57: ob_transfers_to_5_no | J57: =VLOOKUP($I57,$N:$O,2,0) -> 0 | N57: tb_expenses
A58: Transfers Exceeding 10% of Gross Revenues | B58: None | C58: =IF(G58="","",IF(H58,"Yes",IF(J58,"No",IF(NOT(OR(H58,J58)),"-","Check")))) -> - | G58: ob_transfers_to_10_yes | H58: =VLOOKUP($G58,$N:$O,2,0) -> 0 | I58: ob_transfers_to_10_no | J58: =VLOOKUP($I58,$N:$O,2,0) -> 0 | N58: tb_change_in_net_assets
A59: Step 4e. Calculation | C59: =IF(G59="","",VLOOKUP(G59,N:O,2,0)) ->  | N59: tb_ADE
A60: Debt Service Coverage | B60: 1.1 | C60: 0 | D60: =IF(C60>B60,E60,0) -> 0 | E60: 10 | G60: tb_debtservicecoverage | N60: tb_debtservicecoverage
A61: Days Cash on Hand (Unrestricted) | B61: 90 | C61: 0 | D61: =IF(C61>B61,E61,0) -> 0 | E61: 10 | G61: tb_days_cash_on_hand | N61: tb_days_cash_on_hand
A62: Debt to Net Plant Assets | B62: 50 | C62: 0 | D62: =IF(C62<B62,E62,0) -> 5 | E62: 5 | G62: tb_debt_to_net_plant_assets | N62: tb_debt_to_net_plant_assets
A63: Asset Conditions | B63: 25 | C63: 0 | D63: =IF(C63>B63,E63,0) -> 0 | E63: 5 | G63: tb_asset_conditions | N63: tb_asset_conditions
A64: Free Cash Flow as % of Depreciation | B64: 50 | C64: 0 | D64: =IF(C64>B64,E64,0) -> 0 | E64: =10-SUM(D56:D58) -> 10 | G64: tb_freecashflow | N64: tb_freecashflow
A65: Annual Bill as % of MHI | D65: =IF(OR(C66>B66,C67>B67,C68>B68),0,E65) -> 10 | E65: 10 | N65: tb_StateBill_sewer
A66: Water | B66: 0.02 | C66: =IFERROR(IF(G66="","",VLOOKUP(G66,N:O,2,0))/100,0) -> 0 | G66: tb_BillpercentMHI_water | N66: tb_BillpercentMHI_water
A67: Sewer | B67: 0.02 | C67: =IFERROR(IF(G67="","",VLOOKUP(G67,N:O,2,0))/100,0) -> 0 | G67: tb_BillpercentMHI_sewer | N67: tb_BillpercentMHI_sewer
A68: Combined | B68: 0.04 | C68: =IFERROR(IF(G68="","",VLOOKUP(G68,N:O,2,0))/100,0) -> 0 | G68: tb_BillpercentMHI_combined | N68: tb_BillpercentMHI_combined
A69: State Benchmark | C69: =IF(G69="","",VLOOKUP(G69,N:O,2,0)) ->  | D69: =IF(OR(C70="Above 80th Percentile Benchmark",C71="Above 80th Percentile Benchmark",C72="Above 80th Percentile Benchmark"),0,E69) -> 5 | E69: 5 | N69: tb_StateBill_Combined
A70: Water | B70: =IF(I70="","",VLOOKUP(I70,N:O,2,0)) -> 0 | C70: =IF(G70="","",VLOOKUP(G70,N:O,2,0)) -> 0 | G70: lb_SB_Water_Compare | I70: tb_StateBill_water | N70: tb_StateBill_water
A71: Sewer | B71: =IF(I71="","",VLOOKUP(I71,N:O,2,0)) -> 0 | C71: =IF(G71="","",VLOOKUP(G71,N:O,2,0)) -> 0 | G71: lb_SB_sewer_Compare | I71: tb_StateBill_sewer | N71: tb_annual_Interest_expense
A72: Combined | B72: =IF(I72="","",VLOOKUP(I72,N:O,2,0)) -> 0 | C72: =IF(G72="","",VLOOKUP(G72,N:O,2,0)) -> 0 | G72: lb_SB_Combined_Compare | I72: tb_StateBill_Combined | N72: tb_ADSP
N73: cb_distribution
N74: cb_water_pumping
N75: cb_collection
N76: cb_ww_pumping
N77: tb_ww_CAO
G78: step 4a | H78: =COUNTIF(C43:C45,"-") -> 3 | N78: tb_ww_NOV
G79: step 4b | H79: =COUNTIF(C47:C51,"-") -> 5 | N79: ob_WW_inspection_yes
G80: step 4c | H80: =COUNTIF(C55:C58,"-") -> 4 | N80: ob_WW_inspection_no
N81: lb_viabilityscorelabel
N82: lb_Viability
N83: ob_W_inspection_yes
N84: ob_W_inspection_no
N85: ob_transfers_no
N86: ob_transfers_yes
N87: ob_transfersfrom_no
N88: ob_transfersfrom_yes
N89: ob_transfers_to_5_no
N90: ob_transfers_to_5_yes
N91: ob_transfers_to_10_no
N92: ob_transfers_to_10_yes
N93: lb_incomplete
N94: lb_SB_Water_Compare
N95: lb_SB_Sewer_Compare
N96: lb_SB_combined_Compare

Sheet State (hidden)
A1: Location | B1: 2021 Population Estimate | C1: 2022 Population Estimate | D1: Pop Change | E1: 2022 Poverty Rate (All People) | F1: Unemployment Rate 2022 | G1: Median Household Income 2022 | I1: Data last pulled on 1/19/24 from Census.gov
A2: South Carolina | B2: 5078903 | C2: 5142750 | D2: 0.01309160248 | E2: 14.4 | F2: 3.2 | G2: 63623 | I2: Unemployment Rates from SC Dept of Employment and Workforce Unemployment Rates (by County)
I3: All other Data from Census.gov (ACS 5 Year Estimates Data Profiles (2022 and 2021))
B4: State Bill Comparison (80th Percentile Benchmark)
B5: Water | C5: Sewer | D5: Combined
B6: 45.02 | C6: 57.6 | D6: =SUM(B6:C6) -> 102.62 | I6: Benchmarks are from RIA's FY23 Rate Survey

Sheet County (hidden)
A1: Location | B1: 2021 Population Estimate | C1: 2022 Population Estimate | D1: Pop Change | E1: 2022 Poverty Rate (All People) | F1: Old Unemployment Rate Column - do not use | G1: Unemployment Rate 2022 | H1: Median Household Income 2022 | J1: Data last pulled on 1/19/24 from Census.gov
A2: Abbeville County | B2: 24374 | C2: 24368 | D2: =(RawData[[#This Row],[2022 Population Estimate]]-RawData[[#This Row],[2021 Population Estimate]])/RawData[[#This Row],[2021 Population Estimate]] -> -0.0002461639452 | E2: 15.9 | G2: 3.9 | H2: 49759 | J2: Unemployment Rates from SC Dept of Employment and Workforce Unemployment Rates (by County)
A3: Aiken County | B3: 168045 | C3: 169865 | D3: =(RawData[[#This Row],[2022 Population Estimate]]-RawData[[#This Row],[2021 Population Estimate]])/RawData[[#This Row],[2021 Population Estimate]] -> 0.01083043232 | E3: 14.2 | G3: 3.2 | H3: 63212 | J3: All other Data from Census.gov (ACS 5 Year Estimates Data Profiles (2022 and 2021))
A4: Allendale County | B4: 8304 | C4: 8073 | D4: =(RawData[[#This Row],[2022 Population Estimate]]-RawData[[#This Row],[2021 Population Estimate]])/RawData[[#This Row],[2021 Population Estimate]] -> -0.02781791908 | E4: 27.2 | G4: 5.7 | H4: 37096
A5: Anderson County | B5: 202223 | C5: 204592 | D5: =(RawData[[#This Row],[2022 Population Estimate]]-RawData[[#This Row],[2021 Population Estimate]])/RawData[[#This Row],[2021 Population Estimate]] -> 0.01171479011 | E5: 14.3 | G5: 3 | H5: 62347
A6: Bamberg County | B6: 13525 | C6: 13311 | D6: =(RawData[[#This Row],[2022 Population Estimate]]-RawData[[#This Row],[2021 Population Estimate]])/RawData[[#This Row],[2021 Population Estimate]] -> -0.01582255083 | E6: 22.3 | G6: 5.5 | H6: 43920
A7: Barnwell County | B7: 20801 | C7: 20653 | D7: =(RawData[[#This Row],[2022 Population Estimate]]-RawData[[#This Row],[2021 Population Estimate]])/RawData[[#This Row],[2021 Population Estimate]] -> -0.007115042546 | E7: 25.3 | G7: 4.7 | H7: 42470
A8: Beaufort County | B8: 186007 | C8: 189071 | D8: =(RawData[[#This Row],[2022 Population Estimate]]-RawData[[#This Row],[2021 Population Estimate]])/RawData[[#This Row],[2021 Population Estimate]] -> 0.01647249835 | E8: 10.4 | G8: 3.1 | H8: 81260
A9: Berkeley County | B9: 224806 | C9: 231419 | D9: =(RawData[[#This Row],[2022 Population Estimate]]-RawData[[#This Row],[2021 Population Estimate]])/RawData[[#This Row],[2021 Population Estimate]] -> 0.02941647465 | E9: 10.9 | G9: 3.1 | H9: 77874
A10: Calhoun County | B10: 14198 | C10: 14145 | D10: =(RawData[[#This Row],[2022 Population Estimate]]-RawData[[#This Row],[2021 Population Estimate]])/RawData[[#This Row],[2021 Population Estimate]] -> -0.00373292013 | E10: 18.7 | G10: 3.5 | H10: 55550
A11: Charleston County | B11: 404946 | C11: 409840 | D11: =(RawData[[#This Row],[2022 Population Estimate]]-RawData[[#This Row],[2021 Population Estimate]])/RawData[[#This Row],[2021 Population Estimate]] -> 0.01208556203 | E11: 12.3 | G11: 2.8 | H11: 78795
A12: Cherokee County | B12: 56204 | C12: 56200 | D12: =(RawData[[#This Row],[2022 Population Estimate]]-RawData[[#This Row],[2021 Population Estimate]])/RawData[[#This Row],[2021 Population Estimate]] -> -7.116931179e-05 | E12: 18 | G12: 4.1 | H12: 47011
A13: Chester County | B13: 32273 | C13: 32171 | D13: =(RawData[[#This Row],[2022 Population Estimate]]-RawData[[#This Row],[2021 Population Estimate]])/RawData[[#This Row],[2021 Population Estimate]] -> -0.003160536672 | E13: 18.9 | G13: 4.3 | H13: 50022
A14: Chesterfield County | B14: 43655 | C14: 43536 | D14: =(RawData[[#This Row],[2022 Population Estimate]]-RawData[[#This Row],[2021 Population Estimate]])/RawData[[#This Row],[2021 Population Estimate]] -> -0.002725919139 | E14: 20.3 | G14: 3.6 | H14: 46326
A15: Clarendon County | B15: 31613 | C15: 31163 | D15: =(RawData[[#This Row],[2022 Population Estimate]]-RawData[[#This Row],[2021 Population Estimate]])/RawData[[#This Row],[2021 Population Estimate]] -> -0.0142346503 | E15: 19.5 | G15: 4.1 | H15: 48677
A16: Colleton County | B16: 38520 | C16: 38561 | D16: =(RawData[[#This Row],[2022 Population Estimate]]-RawData[[#This Row],[2021 Population Estimate]])/RawData[[#This Row],[2021 Population Estimate]] -> 0.001064382139 | E16: 16.6 | G16: 3.5 | H16: 46795
A17: Darlington County | B17: 63433 | C17: 63025 | D17: =(RawData[[#This Row],[2022 Population Estimate]]-RawData[[#This Row],[2021 Population Estimate]])/RawData[[#This Row],[2021 Population Estimate]] -> -0.006431983353 | E17: 20.2 | G17: 3.5 | H17: 44317
A18: Dillon County | B18: 28527 | C18: 28255 | D18: =(RawData[[#This Row],[2022 Population Estimate]]-RawData[[#This Row],[2021 Population Estimate]])/RawData[[#This Row],[2021 Population Estimate]] -> -0.009534826655 | E18: 31.6 | G18: 4.6 | H18: 42454
A19: Dorchester County | B19: 160180 | C19: 162139 | D19: =(RawData[[#This Row],[2022 Population Estimate]]-RawData[[#This Row],[2021 Population Estimate]])/RawData[[#This Row],[2021 Population Estimate]] -> 0.01222999126 | E19: 12.3 | G19: 2.9 | H19: 73686
A20: Edgefield County | B20: 25938 | C20: 26181 | D20: =(RawData[[#This Row],[2022 Population Estimate]]-RawData[[#This Row],[2021 Population Estimate]])/RawData[[#This Row],[2021 Population Estimate]] -> 0.009368494101 | E20: 17 | G20: 3.3 | H20: 60033
A21: Fairfield County | B21: 21186 | C21: 20942 | D21: =(RawData[[#This Row],[2022 Population Estimate]]-RawData[[#This Row],[2021 Population Estimate]])/RawData[[#This Row],[2021 Population Estimate]] -> -0.01151703955 | E21: 18.7 | G21: 4.7 | H21: 44521
A22: Florence County | B22: 137276 | C22: 137015 | D22: =(RawData[[#This Row],[2022 Population Estimate]]-RawData[[#This Row],[2021 Population Estimate]])/RawData[[#This Row],[2021 Population Estimate]] -> -0.001901279175 | E22: 17.8 | G22: 3.2 | H22: 56088
A23: Georgetown County | B23: 62992 | C23: 63594 | D23: =(RawData[[#This Row],[2022 Population Estimate]]-RawData[[#This Row],[2021 Population Estimate]])/RawData[[#This Row],[2021 Population Estimate]] -> 0.009556769114 | E23: 16 | G23: 3.7 | H23: 59782
A24: Greenville County | B24: 519178 | C24: 528251 | D24: =(RawData[[#This Row],[2022 Population Estimate]]-RawData[[#This Row],[2021 Population Estimate]])/RawData[[#This Row],[2021 Population Estimate]] -> 0.01747570198 | E24: 10.9 | G24: 2.8 | H24: 71328
A25: Greenwood County | B25: 69338 | C25: 69309 | D25: =(RawData[[#This Row],[2022 Population Estimate]]-RawData[[#This Row],[2021 Population Estimate]])/RawData[[#This Row],[2021 Population Estimate]] -> -0.0004182410799 | E25: 17.3 | G25: 3.7 | H25: 47553
A26: Hampton County | B26: 19227 | C26: 18890 | D26: =(RawData[[#This Row],[2022 Population Estimate]]-RawData[[#This Row],[2021 Population Estimate]])/RawData[[#This Row],[2021 Population Estimate]] -> -0.01752743538 | E26: 20 | G26: 2.9 | H26: 40157
A27: Horry County | B27: 344865 | C27: 356578 | D27: =(RawData[[#This Row],[2022 Population Estimate]]-RawData[[#This Row],[2021 Population Estimate]])/RawData[[#This Row],[2021 Population Estimate]] -> 0.0339640149 | E27: 13.1 | G27: 3.9 | H27: 59880
A28: Jasper County | B28: 28363 | C28: 29444 | D28: =(RawData[[#This Row],[2022 Population Estimate]]-RawData[[#This Row],[2021 Population Estimate]])/RawData[[#This Row],[2021 Population Estimate]] -> 0.03811303459 | E28: 17.9 | G28: 3.1 | H28: 60452
A29: Kershaw County | B29: 64989 | C29: 65779 | D29: =(RawData[[#This Row],[2022 Population Estimate]]-RawData[[#This Row],[2021 Population Estimate]])/RawData[[#This Row],[2021 Population Estimate]] -> 0.01215590331 | E29: 14.4 | G29: 3.3 | H29: 61343
A30: Lancaster County | B30: 94653 | C30: 97611 | D30: =(RawData[[#This Row],[2022 Population Estimate]]-RawData[[#This Row],[2021 Population Estimate]])/RawData[[#This Row],[2021 Population Estimate]] -> 0.03125099046 | E30: 12.1 | G30: 3.6 | H30: 72186
A31: Laurens County | B31: 67148 | C31: 67456 | D31: =(RawData[[#This Row],[2022 Population Estimate]]-RawData[[#This Row],[2021 Population Estimate]])/RawData[[#This Row],[2021 Population Estimate]] -> 0.004586882707 | E31: 18.8 | G31: 3.4 | H31: 52077
A32: Lee County | B32: 16730 | C32: 16557 | D32: =(RawData[[#This Row],[2022 Population Estimate]]-RawData[[#This Row],[2021 Population Estimate]])/RawData[[#This Row],[2021 Population Estimate]] -> -0.01034070532 | E32: 27.8 | G32: 4.7 | H32: 39099
A33: Lexington County | B33: 291723 | C33: 295934 | D33: =(RawData[[#This Row],[2022 Population Estimate]]-RawData[[#This Row],[2021 Population Estimate]])/RawData[[#This Row],[2021 Population Estimate]] -> 0.01443492628 | E33: 11.6 | G33: 2.7 | H33: 71280
A34: Marion County | B34: 29585 | C34: 29212 | D34: =(RawData[[#This Row],[2022 Population Estimate]]-RawData[[#This Row],[2021 Population Estimate]])/RawData[[#This Row],[2021 Population Estimate]] -> -0.01260774041 | E34: 27.4 | G34: 4.9 | H34: 35972
A35: Marlboro County | B35: 26912 | C35: 26585 | D35: =(RawData[[#This Row],[2022 Population Estimate]]-RawData[[#This Row],[2021 Population Estimate]])/RawData[[#This Row],[2021 Population Estimate]] -> -0.01215071344 | E35: 27.8 | G35: 6.5 | H35: 34275
A36: McCormick County | B36: 9584 | C36: 9612 | D36: =(RawData[[#This Row],[2022 Population Estimate]]-RawData[[#This Row],[2021 Population Estimate]])/RawData[[#This Row],[2021 Population Estimate]] -> 0.002921535893 | E36: 16.7 | G36: 3.6 | H36: 55569
A37: Newberry County | B37: 37842 | C37: 37918 | D37: =(RawData[[#This Row],[2022 Population Estimate]]-RawData[[#This Row],[2021 Population Estimate]])/RawData[[#This Row],[2021 Population Estimate]] -> 0.00200835051 | E37: 15.5 | G37: 2.8 | H37: 56706
A38: Oconee County | B38: 77932 | C38: 78775 | D38: =(RawData[[#This Row],[2022 Population Estimate]]-RawData[[#This Row],[2021 Population Estimate]])/RawData[[#This Row],[2021 Population Estimate]] -> 0.01081712262 | E38: 15.7 | G38: 3.1 | H38: 56710
A39: Orangeburg County | B39: 84909 | C39: 84159 | D39: =(RawData[[#This Row],[2022 Population Estimate]]-RawData[[#This Row],[2021 Population Estimate]])/RawData[[#This Row],[2021 Population Estimate]] -> -0.008832985903 | E39: 25 | G39: 5 | H39: 41020
A40: Pickens County | B40: 129617 | C40: 131106 | D40: =(RawData[[#This Row],[2022 Population Estimate]]-RawData[[#This Row],[2021 Population Estimate]])/RawData[[#This Row],[2021 Population Estimate]] -> 0.01148769066 | E40: 16.9 | G40: 3.1 | H40: 57628
A41: Richland County | B41: 414719 | C41: 416161 | D41: =(RawData[[#This Row],[2022 Population Estimate]]-RawData[[#This Row],[2021 Population Estimate]])/RawData[[#This Row],[2021 Population Estimate]] -> 0.003477053137 | E41: 16.8 | G41: 3.3 | H41: 59850
A42: Saluda County | B42: 19008 | C42: 18952 | D42: =(RawData[[#This Row],[2022 Population Estimate]]-RawData[[#This Row],[2021 Population Estimate]])/RawData[[#This Row],[2021 Population Estimate]] -> -0.002946127946 | E42: 17.9 | G42: 2.9 | H42: 51041
A43: Spartanburg County | B43: 322864 | C43: 330119 | D43: =(RawData[[#This Row],[2022 Population Estimate]]-RawData[[#This Row],[2021 Population Estimate]])/RawData[[#This Row],[2021 Population Estimate]] -> 0.02247076168 | E43: 14.4 | G43: 3.1 | H43: 61955
A44: Sumter County | B44: 105537 | C44: 105199 | D44: =(RawData[[#This Row],[2022 Population Estimate]]-RawData[[#This Row],[2021 Population Estimate]])/RawData[[#This Row],[2021 Population Estimate]] -> -0.003202668259 | E44: 16.4 | G44: 3.8 | H44: 53970
A45: Union County | B45: 27306 | C45: 27158 | D45: =(RawData[[#This Row],[2022 Population Estimate]]-RawData[[#This Row],[2021 Population Estimate]])/RawData[[#This Row],[2021 Population Estimate]] -> -0.005420054201 | E45: 21 | G45: 4.7 | H45: 42305
A46: Williamsburg County | B46: 31279 | C46: 30879 | D46: =(RawData[[#This Row],[2022 Population Estimate]]-RawData[[#This Row],[2021 Population Estimate]])/RawData[[#This Row],[2021 Population Estimate]] -> -0.01278813261 | E46: 23.5 | G46: 4.8 | H46: 40848
A47: York County | B47: 276569 | C47: 282987 | D47: =(RawData[[#This Row],[2022 Population Estimate]]-RawData[[#This Row],[2021 Population Estimate]])/RawData[[#This Row],[2021 Population Estimate]] -> 0.02320578228 | E47: 8.4 | G47: 3.1 | H47: 80158

Sheet Place (hidden)
A1: Location | B1: County | C1: 2021 Population Estimate | D1: 2022 Population Estimate | E1: Pop Change | F1: 2022 Poverty Rate (All People) | G1: Old Unemployment Rate Column - Do not use | H1: Unemployment Rate 2022 | I1: Median Household Income 2022 | K1: Data last pulled on 1/19/24 from Census.gov
A2: Abbeville city | B2: Abbeville County | C2: 4902 | D2: 4892 | E2: =(RawData3[[#This Row],[2022 Population Estimate]]-RawData3[[#This Row],[2021 Population Estimate]])/RawData3[[#This Row],[2021 Population Estimate]] -> -0.00203998368 | F2: 29.7 | H2: 3.9 | I2: 41025 | K2: Unemployment Rates from SC Dept of Employment and Workforce Unemployment Rates (by County)
A3: Aiken city | B3: Aiken County | C3: 31516 | D3: 32014 | E3: =(RawData3[[#This Row],[2022 Population Estimate]]-RawData3[[#This Row],[2021 Population Estimate]])/RawData3[[#This Row],[2021 Population Estimate]] -> 0.01580149765 | F3: 16 | H3: 3.5 | I3: 65712 | K3: All other Data from Census.gov (ACS 5 Year Estimates Data Profiles (2022 and 2021))
A4: Alcolu CDP | B4: Clarendon County | C4: 388 | D4: 385 | E4: =(RawData3[[#This Row],[2022 Population Estimate]]-RawData3[[#This Row],[2021 Population Estimate]])/RawData3[[#This Row],[2021 Population Estimate]] -> -0.007731958763 | F4: 55.1 | H4: 4.1 | I4: 26840
A5: Allendale town | B5: Allendale County | C5: 2827 | D5: 2702 | E5: =(RawData3[[#This Row],[2022 Population Estimate]]-RawData3[[#This Row],[2021 Population Estimate]])/RawData3[[#This Row],[2021 Population Estimate]] -> -0.04421648391 | F5: 43.3 | H5: 5.7 | I5: 19921
A6: Anderson city | B6: Anderson County | C6: 28796 | D6: 29345 | E6: =(RawData3[[#This Row],[2022 Population Estimate]]-RawData3[[#This Row],[2021 Population Estimate]])/RawData3[[#This Row],[2021 Population Estimate]] -> 0.01906514794 | F6: 25.1 | H6: 3.4 | I6: 40445
A7: Andrews town | B7: Williamsburg County | C7: 2721 | D7: 3617 | E7: =(RawData3[[#This Row],[2022 Population Estimate]]-RawData3[[#This Row],[2021 Population Estimate]])/RawData3[[#This Row],[2021 Population Estimate]] -> 0.3292907019 | F7: 35.5 | H7: 4.8 | I7: 42337
A8: Antreville CDP | B8: Abbeville County | C8: 242 | D8: 286 | E8: =(RawData3[[#This Row],[2022 Population Estimate]]-RawData3[[#This Row],[2021 Population Estimate]])/RawData3[[#This Row],[2021 Population Estimate]] -> 0.1818181818 | F8: 35 | H8: 3.9 | I8: 49759
A9: Arcadia CDP | B9: Spartanburg County | C9: 3397 | D9: 2846 | E9: =(RawData3[[#This Row],[2022 Population Estimate]]-RawData3[[#This Row],[2021 Population Estimate]])/RawData3[[#This Row],[2021 Population Estimate]] -> -0.1622019429 | F9: 35.3 | H9: 3.1 | I9: 39931
A10: Arcadia Lakes town | B10: Richland County | C10: 724 | D10: 871 | E10: =(RawData3[[#This Row],[2022 Population Estimate]]-RawData3[[#This Row],[2021 Population Estimate]])/RawData3[[#This Row],[2021 Population Estimate]] -> 0.203038674 | F10: 3.1 | H10: 3.3 | I10: 100625
A11: Arial CDP | B11: Pickens County | C11: 1969 | D11: 1750 | E11: =(RawData3[[#This Row],[2022 Population Estimate]]-RawData3[[#This Row],[2021 Population Estimate]])/RawData3[[#This Row],[2021 Population Estimate]] -> -0.1112239716 | F11: 12.3 | H11: 3.1 | I11: 54453
A12: Atlantic Beach town | B12: Horry County | C12: 299 | D12: 332 | E12: =(RawData3[[#This Row],[2022 Population Estimate]]-RawData3[[#This Row],[2021 Population Estimate]])/RawData3[[#This Row],[2021 Population Estimate]] -> 0.110367893 | F12: 41.6 | H12: 3.9 | I12: 35000
A13: Awendaw town | B13: Charleston County | C13: 1585 | D13: 1548 | E13: =(RawData3[[#This Row],[2022 Population Estimate]]-RawData3[[#This Row],[2021 Population Estimate]])/RawData3[[#This Row],[2021 Population Estimate]] -> -0.02334384858 | F13: 15.9 | H13: 2.8 | I13: 63533
A14: Aynor town | B14: Horry County | C14: 951 | D14: 989 | E14: =(RawData3[[#This Row],[2022 Population Estimate]]-RawData3[[#This Row],[2021 Population Estimate]])/RawData3[[#This Row],[2021 Population Estimate]] -> 0.03995793901 | F14: 9.2 | H14: 3.9 | I14: 70227
A15: Bamberg town | B15: Bamberg County | C15: 3103 | D15: 3074 | E15: =(RawData3[[#This Row],[2022 Population Estimate]]-RawData3[[#This Row],[2021 Population Estimate]])/RawData3[[#This Row],[2021 Population Estimate]] -> -0.009345794393 | F15: 39.7 | H15: 5.5 | I15: 27021
A16: Barnwell city | B16: Barnwell County | C16: 4526 | D16: 4643 | E16: =(RawData3[[#This Row],[2022 Population Estimate]]-RawData3[[#This Row],[2021 Population Estimate]])/RawData3[[#This Row],[2021 Population Estimate]] -> 0.02585064074 | F16: 35.9 | H16: 4.7 | I16: 38065
A17: Batesburg-Leesville town | B17: Saluda County | C17: 5322 | D17: 5004 | E17: =(RawData3[[#This Row],[2022 Population Estimate]]-RawData3[[#This Row],[2021 Population Estimate]])/RawData3[[#This Row],[2021 Population Estimate]] -> -0.05975197294 | F17: 15.8 | H17: 2.9 | I17: 49807
A18: Beaufort city | B18: Beaufort County | C18: 12899 | D18: 13582 | E18: =(RawData3[[#This Row],[2022 Population Estimate]]-RawData3[[#This Row],[2021 Population Estimate]])/RawData3[[#This Row],[2021 Population Estimate]] -> 0.05294984107 | F18: 19.7 | H18: 3.1 | I18: 60366
A19: Belton city | B19: Anderson County | C19: 4320 | D19: 4357 | E19: =(RawData3[[#This Row],[2022 Population Estimate]]-RawData3[[#This Row],[2021 Population Estimate]])/RawData3[[#This Row],[2021 Population Estimate]] -> 0.008564814815 | F19: 13.9 | H19: 3 | I19: 46713
A20: Belvedere CDP | B20: Aiken County | C20: 5330 | D20: 5786 | E20: =(RawData3[[#This Row],[2022 Population Estimate]]-RawData3[[#This Row],[2021 Population Estimate]])/RawData3[[#This Row],[2021 Population Estimate]] -> 0.08555347092 | F20: 21.5 | H20: 3.2 | I20: 46042
A21: Bennettsville city | B21: Marlboro County | C21: 7306 | D21: 6975 | E21: =(RawData3[[#This Row],[2022 Population Estimate]]-RawData3[[#This Row],[2021 Population Estimate]])/RawData3[[#This Row],[2021 Population Estimate]] -> -0.04530522858 | F21: 27.1 | H21: 6.5 | I21: 37891
A22: Berea CDP | B22: Pickens County | C22: 15892 | D22: 16184 | E22: =(RawData3[[#This Row],[2022 Population Estimate]]-RawData3[[#This Row],[2021 Population Estimate]])/RawData3[[#This Row],[2021 Population Estimate]] -> 0.01837402467 | F22: 19.9 | H22: 3.1 | I22: 46393
A23: Bethune town | B23: Kershaw County | C23: 446 | D23: 454 | E23: =(RawData3[[#This Row],[2022 Population Estimate]]-RawData3[[#This Row],[2021 Population Estimate]])/RawData3[[#This Row],[2021 Population Estimate]] -> 0.01793721973 | F23: 33.7 | H23: 3.3 | I23: 40714
A24: Bishopville city | B24: Lee County | C24: 3042 | D24: 2986 | E24: =(RawData3[[#This Row],[2022 Population Estimate]]-RawData3[[#This Row],[2021 Population Estimate]])/RawData3[[#This Row],[2021 Population Estimate]] -> -0.01840894149 | F24: 28.8 | H24: 4.7 | I24: 40909
A25: Blacksburg town | B25: Cherokee County | C25: 2390 | D25: 2115 | E25: =(RawData3[[#This Row],[2022 Population Estimate]]-RawData3[[#This Row],[2021 Population Estimate]])/RawData3[[#This Row],[2021 Population Estimate]] -> -0.1150627615 | F25: 31.5 | H25: 4.1 | I25: 29564
A26: Blackville town | B26: Barnwell County | C26: 2135 | D26: 2034 | E26: =(RawData3[[#This Row],[2022 Population Estimate]]-RawData3[[#This Row],[2021 Population Estimate]])/RawData3[[#This Row],[2021 Population Estimate]] -> -0.04730679157 | F26: 28.1 | H26: 4.7 | I26: 26667
A27: Blenheim town | B27: Marlboro County | C27: 96 | D27: 63 | E27: =(RawData3[[#This Row],[2022 Population Estimate]]-RawData3[[#This Row],[2021 Population Estimate]])/RawData3[[#This Row],[2021 Population Estimate]] -> -0.34375 | F27: 33.3 | H27: 6.5 | I27: 34275
A28: Bluffton town | B28: Beaufort County | C28: 27596 | D28: 29375 | E28: =(RawData3[[#This Row],[2022 Population Estimate]]-RawData3[[#This Row],[2021 Population Estimate]])/RawData3[[#This Row],[2021 Population Estimate]] -> 0.06446586462 | F28: 5.5 | H28: 3.1 | I28: 99575
A29: Blythewood town | B29: Fairfield County | C29: 4543 | D29: 4890 | E29: =(RawData3[[#This Row],[2022 Population Estimate]]-RawData3[[#This Row],[2021 Population Estimate]])/RawData3[[#This Row],[2021 Population Estimate]] -> 0.07638124587 | F29: 4.2 | H29: 4.7 | I29: 100595
A30: Boiling Springs CDP | B30: Spartanburg County | C30: 10591 | D30: 11191 | E30: =(RawData3[[#This Row],[2022 Population Estimate]]-RawData3[[#This Row],[2021 Population Estimate]])/RawData3[[#This Row],[2021 Population Estimate]] -> 0.05665187423 | F30: 9.1 | H30: 3.1 | I30: 68993
A31: Bonneau Beach CDP | B31: Berkeley County | C31: 1045 | D31: 1500 | E31: =(RawData3[[#This Row],[2022 Population Estimate]]-RawData3[[#This Row],[2021 Population Estimate]])/RawData3[[#This Row],[2021 Population Estimate]] -> 0.4354066986 | F31: 19.7 | H31: 3.1 | I31: 56635
A32: Bonneau town | B32: Berkeley County | C32: 889 | D32: 582 | E32: =(RawData3[[#This Row],[2022 Population Estimate]]-RawData3[[#This Row],[2021 Population Estimate]])/RawData3[[#This Row],[2021 Population Estimate]] -> -0.3453318335 | F32: 38.5 | H32: 3.1 | I32: 61528
A33: Bowman town | B33: Orangeburg County | C33: 820 | D33: 652 | E33: =(RawData3[[#This Row],[2022 Population Estimate]]-RawData3[[#This Row],[2021 Population Estimate]])/RawData3[[#This Row],[2021 Population Estimate]] -> -0.2048780488 | F33: 35.4 | H33: 5 | I33: 33250
A34: Boykin CDP | B34: Kershaw County | C34: 155 | D34: 109 | E34: =(RawData3[[#This Row],[2022 Population Estimate]]-RawData3[[#This Row],[2021 Population Estimate]])/RawData3[[#This Row],[2021 Population Estimate]] -> -0.2967741935 | F34: 0 | H34: 3.3 | I34: 128580
A35: Bradley CDP | B35: Greenwood County | C35: 139 | D35: 163 | E35: =(RawData3[[#This Row],[2022 Population Estimate]]-RawData3[[#This Row],[2021 Population Estimate]])/RawData3[[#This Row],[2021 Population Estimate]] -> 0.1726618705 | F35: 66.9 | H35: 3.7 | I35: 42981
A36: Branchville town | B36: Orangeburg County | C36: 1158 | D36: 1301 | E36: =(RawData3[[#This Row],[2022 Population Estimate]]-RawData3[[#This Row],[2021 Population Estimate]])/RawData3[[#This Row],[2021 Population Estimate]] -> 0.1234887737 | F36: 22.8 | H36: 5 | I36: 34486
A37: Briarcliffe Acres town | B37: Horry County | C37: 571 | D37: 568 | E37: =(RawData3[[#This Row],[2022 Population Estimate]]-RawData3[[#This Row],[2021 Population Estimate]])/RawData3[[#This Row],[2021 Population Estimate]] -> -0.005253940455 | F37: 8.5 | H37: 3.9 | I37: 134375
A38: Brookdale CDP | B38: Orangeburg County | C38: 4221 | D38: 4069 | E38: =(RawData3[[#This Row],[2022 Population Estimate]]-RawData3[[#This Row],[2021 Population Estimate]])/RawData3[[#This Row],[2021 Population Estimate]] -> -0.03601042407 | F38: 33.4 | H38: 5 | I38: 33406
A39: Brunson town | B39: Hampton County | C39: 518 | D39: 525 | E39: =(RawData3[[#This Row],[2022 Population Estimate]]-RawData3[[#This Row],[2021 Population Estimate]])/RawData3[[#This Row],[2021 Population Estimate]] -> 0.01351351351 | F39: 21.4 | H39: 2.9 | I39: 37542
A40: Bucksport CDP | B40: Horry County | C40: 698 | D40: 744 | E40: =(RawData3[[#This Row],[2022 Population Estimate]]-RawData3[[#This Row],[2021 Population Estimate]])/RawData3[[#This Row],[2021 Population Estimate]] -> 0.0659025788 | F40: 8.1 | H40: 3.9 | I40: 53438
A41: Buffalo CDP | B41: Union County | C41: 1330 | D41: 1159 | E41: =(RawData3[[#This Row],[2022 Population Estimate]]-RawData3[[#This Row],[2021 Population Estimate]])/RawData3[[#This Row],[2021 Population Estimate]] -> -0.1285714286 | F41: 38 | H41: 4.7 | I41: 19770
A42: Burnettown town | B42: Aiken County | C42: 3058 | D42: 3052 | E42: =(RawData3[[#This Row],[2022 Population Estimate]]-RawData3[[#This Row],[2021 Population Estimate]])/RawData3[[#This Row],[2021 Population Estimate]] -> -0.00196206671 | F42: 28.8 | H42: 3.2 | I42: 32279
A43: Burton CDP | B43: Beaufort County | C43: 7818 | D43: 7603 | E43: =(RawData3[[#This Row],[2022 Population Estimate]]-RawData3[[#This Row],[2021 Population Estimate]])/RawData3[[#This Row],[2021 Population Estimate]] -> -0.02750063955 | F43: 14 | H43: 3.1 | I43: 58390
A44: Calhoun Falls town | B44: Abbeville County | C44: 1878 | D44: 1939 | E44: =(RawData3[[#This Row],[2022 Population Estimate]]-RawData3[[#This Row],[2021 Population Estimate]])/RawData3[[#This Row],[2021 Population Estimate]] -> 0.03248136315 | F44: 21.8 | H44: 3.9 | I44: 30078
A45: Camden city | B45: Kershaw County | C45: 7666 | D45: 7834 | E45: =(RawData3[[#This Row],[2022 Population Estimate]]-RawData3[[#This Row],[2021 Population Estimate]])/RawData3[[#This Row],[2021 Population Estimate]] -> 0.02191494913 | F45: 17.9 | H45: 3.3 | I45: 54141
A46: Cameron town | B46: Calhoun County | C46: 484 | D46: 486 | E46: =(RawData3[[#This Row],[2022 Population Estimate]]-RawData3[[#This Row],[2021 Population Estimate]])/RawData3[[#This Row],[2021 Population Estimate]] -> 0.004132231405 | F46: 15 | H46: 3.5 | I46: 64821
A47: Campobello town | B47: Spartanburg County | C47: 681 | D47: 866 | E47: =(RawData3[[#This Row],[2022 Population Estimate]]-RawData3[[#This Row],[2021 Population Estimate]])/RawData3[[#This Row],[2021 Population Estimate]] -> 0.2716593245 | F47: 7.5 | H47: 3.1 | I47: 85227
A48: Cane Savannah CDP | B48: Sumter County | C48: 1353 | D48: 1534 | E48: =(RawData3[[#This Row],[2022 Population Estimate]]-RawData3[[#This Row],[2021 Population Estimate]])/RawData3[[#This Row],[2021 Population Estimate]] -> 0.1337767923 | F48: 3.2 | H48: 3.8 | I48: 67619
A49: Carlisle town | B49: Union County | C49: 563 | D49: 526 | E49: =(RawData3[[#This Row],[2022 Population Estimate]]-RawData3[[#This Row],[2021 Population Estimate]])/RawData3[[#This Row],[2021 Population Estimate]] -> -0.06571936057 | F49: 13.9 | H49: 4.7 | I49: 49732
A50: Catawba CDP | B50: Chester County | C50: 1501 | D50: 1439 | E50: =(RawData3[[#This Row],[2022 Population Estimate]]-RawData3[[#This Row],[2021 Population Estimate]])/RawData3[[#This Row],[2021 Population Estimate]] -> -0.04130579614 | F50: 26.6 | H50: 4.3 | I50: 50920
A51: Cayce city | B51: Lexington County | C51: 13637 | D51: 13755 | E51: =(RawData3[[#This Row],[2022 Population Estimate]]-RawData3[[#This Row],[2021 Population Estimate]])/RawData3[[#This Row],[2021 Population Estimate]] -> 0.00865292953 | F51: 17.9 | H51: 2.7 | I51: 56976
A52: Centerville CDP | B52: Anderson County | C52: 7276 | D52: 7217 | E52: =(RawData3[[#This Row],[2022 Population Estimate]]-RawData3[[#This Row],[2021 Population Estimate]])/RawData3[[#This Row],[2021 Population Estimate]] -> -0.008108851017 | F52: 9.7 | H52: 3 | I52: 71292
A53: Central Pacolet town | B53: Spartanburg County | C53: 254 | D53: 194 | E53: =(RawData3[[#This Row],[2022 Population Estimate]]-RawData3[[#This Row],[2021 Population Estimate]])/RawData3[[#This Row],[2021 Population Estimate]] -> -0.2362204724 | F53: 22.7 | H53: 3.1 | I53: 29750
A54: Central town | B54: Pickens County | C54: 5229 | D54: 5272 | E54: =(RawData3[[#This Row],[2022 Population Estimate]]-RawData3[[#This Row],[2021 Population Estimate]])/RawData3[[#This Row],[2021 Population Estimate]] -> 0.008223369669 | F54: 34.3 | H54: 3.1 | I54: 45909
A55: Chapin town | B55: Lexington County | C55: 1544 | D55: 1543 | E55: =(RawData3[[#This Row],[2022 Population Estimate]]-RawData3[[#This Row],[2021 Population Estimate]])/RawData3[[#This Row],[2021 Population Estimate]] -> -0.0006476683938 | F55: 5.7 | H55: 2.7 | I55: 77917
A56: Charleston city | B56: Dorchester County | C56: 147928 | D56: 149960 | E56: =(RawData3[[#This Row],[2022 Population Estimate]]-RawData3[[#This Row],[2021 Population Estimate]])/RawData3[[#This Row],[2021 Population Estimate]] -> 0.01373641231 | F56: 12.6 | H56: 2.7 | I56: 83891
A57: Cheraw town | B57: Chesterfield County | C57: 5090 | D57: 5056 | E57: =(RawData3[[#This Row],[2022 Population Estimate]]-RawData3[[#This Row],[2021 Population Estimate]])/RawData3[[#This Row],[2021 Population Estimate]] -> -0.006679764244 | F57: 33.8 | H57: 3.6 | I57: 30658
A58: Cherryvale CDP | B58: Sumter County | C58: 2912 | D58: 2843 | E58: =(RawData3[[#This Row],[2022 Population Estimate]]-RawData3[[#This Row],[2021 Population Estimate]])/RawData3[[#This Row],[2021 Population Estimate]] -> -0.02369505495 | F58: 20.7 | H58: 3.8 | I58: 39688
A59: Chesnee city | B59: Spartanburg County | C59: 679 | D59: 597 | E59: =(RawData3[[#This Row],[2022 Population Estimate]]-RawData3[[#This Row],[2021 Population Estimate]])/RawData3[[#This Row],[2021 Population Estimate]] -> -0.1207658321 | F59: 21.8 | H59: 3.1 | I59: 42727
A60: Chester city | B60: Chester County | C60: 5283 | D60: 5260 | E60: =(RawData3[[#This Row],[2022 Population Estimate]]-RawData3[[#This Row],[2021 Population Estimate]])/RawData3[[#This Row],[2021 Population Estimate]] -> -0.004353586977 | F60: 23.8 | H60: 4.3 | I60: 39951
A61: Chesterfield town | B61: Chesterfield County | C61: 1404 | D61: 1424 | E61: =(RawData3[[#This Row],[2022 Population Estimate]]-RawData3[[#This Row],[2021 Population Estimate]])/RawData3[[#This Row],[2021 Population Estimate]] -> 0.01424501425 | F61: 27.2 | H61: 3.6 | I61: 52232
A62: City View CDP | B62: Greenville County | C62: 1426 | D62: 1696 | E62: =(RawData3[[#This Row],[2022 Population Estimate]]-RawData3[[#This Row],[2021 Population Estimate]])/RawData3[[#This Row],[2021 Population Estimate]] -> 0.1893408135 | F62: 47.5 | H62: 2.8 | I62: 71328
A63: Clarks Hill CDP | B63: McCormick County | C63: 116 | D63: 78 | E63: =(RawData3[[#This Row],[2022 Population Estimate]]-RawData3[[#This Row],[2021 Population Estimate]])/RawData3[[#This Row],[2021 Population Estimate]] -> -0.3275862069 | F63: 41 | H63: 3.6 | I63: 55569
A64: Clearwater CDP | B64: Aiken County | C64: 3985 | D64: 3403 | E64: =(RawData3[[#This Row],[2022 Population Estimate]]-RawData3[[#This Row],[2021 Population Estimate]])/RawData3[[#This Row],[2021 Population Estimate]] -> -0.1460476788 | F64: 12.3 | H64: 3.2 | I64: 52991
A65: Clemson city | B65: Anderson County | C65: 17238 | D65: 17557 | E65: =(RawData3[[#This Row],[2022 Population Estimate]]-RawData3[[#This Row],[2021 Population Estimate]])/RawData3[[#This Row],[2021 Population Estimate]] -> 0.0185056271 | F65: 36 | H65: 3 | I65: 50263
A66: Clifton CDP | B66: Spartanburg County | C66: 771 | D66: 962 | E66: =(RawData3[[#This Row],[2022 Population Estimate]]-RawData3[[#This Row],[2021 Population Estimate]])/RawData3[[#This Row],[2021 Population Estimate]] -> 0.2477302205 | F66: 42.3 | H66: 3.1 | I66: 45386
A67: Clinton city | B67: Laurens County | C67: 7753 | D67: 7624 | E67: =(RawData3[[#This Row],[2022 Population Estimate]]-RawData3[[#This Row],[2021 Population Estimate]])/RawData3[[#This Row],[2021 Population Estimate]] -> -0.0166387205 | F67: 25.8 | H67: 3.4 | I67: 38350
A68: Clio town | B68: Marlboro County | C68: 614 | D68: 679 | E68: =(RawData3[[#This Row],[2022 Population Estimate]]-RawData3[[#This Row],[2021 Population Estimate]])/RawData3[[#This Row],[2021 Population Estimate]] -> 0.1058631922 | F68: 24.7 | H68: 6.5 | I68: 32847
A69: Clover town | B69: York County | C69: 6566 | D69: 6800 | E69: =(RawData3[[#This Row],[2022 Population Estimate]]-RawData3[[#This Row],[2021 Population Estimate]])/RawData3[[#This Row],[2021 Population Estimate]] -> 0.03563813585 | F69: 12 | H69: 3.1 | I69: 63649
A70: Cokesbury CDP | B70: Greenwood County | C70: 428 | D70: 376 | E70: =(RawData3[[#This Row],[2022 Population Estimate]]-RawData3[[#This Row],[2021 Population Estimate]])/RawData3[[#This Row],[2021 Population Estimate]] -> -0.1214953271 | F70: 0 | H70: 3.7 | I70: 47553
A71: Columbia city | B71: Lexington County | C71: 137276 | D71: 136754 | E71: =(RawData3[[#This Row],[2022 Population Estimate]]-RawData3[[#This Row],[2021 Population Estimate]])/RawData3[[#This Row],[2021 Population Estimate]] -> -0.00380255835 | F71: 24.2 | H71: 3.7 | I71: 54095
A72: Converse CDP | B72: Spartanburg County | C72: 426 | D72: 241 | E72: =(RawData3[[#This Row],[2022 Population Estimate]]-RawData3[[#This Row],[2021 Population Estimate]])/RawData3[[#This Row],[2021 Population Estimate]] -> -0.4342723005 | F72: 13.7 | H72: 3.1 | I72: 61955
A73: Conway city | B73: Horry County | C73: 22001 | D73: 25121 | E73: =(RawData3[[#This Row],[2022 Population Estimate]]-RawData3[[#This Row],[2021 Population Estimate]])/RawData3[[#This Row],[2021 Population Estimate]] -> 0.1418117358 | F73: 20.2 | H73: 3.9 | I73: 48161
A74: Cope town | B74: Orangeburg County | C74: 24 | D74: 28 | E74: =(RawData3[[#This Row],[2022 Population Estimate]]-RawData3[[#This Row],[2021 Population Estimate]])/RawData3[[#This Row],[2021 Population Estimate]] -> 0.1666666667 | F74: 17.9 | H74: 5 | I74: 41875
A75: Cordova town | B75: Orangeburg County | C75: 174 | D75: 214 | E75: =(RawData3[[#This Row],[2022 Population Estimate]]-RawData3[[#This Row],[2021 Population Estimate]])/RawData3[[#This Row],[2021 Population Estimate]] -> 0.2298850575 | F75: 11.2 | H75: 5 | I75: 49886
A76: Coronaca CDP | B76: Greenwood County | C76: 100 | D76: 32 | E76: =(RawData3[[#This Row],[2022 Population Estimate]]-RawData3[[#This Row],[2021 Population Estimate]])/RawData3[[#This Row],[2021 Population Estimate]] -> -0.68 | F76: 100 | H76: 3.7 | I76: 47553
A77: Cottageville town | B77: Colleton County | C77: 1155 | D77: 1144 | E77: =(RawData3[[#This Row],[2022 Population Estimate]]-RawData3[[#This Row],[2021 Population Estimate]])/RawData3[[#This Row],[2021 Population Estimate]] -> -0.009523809524 | F77: 5.9 | H77: 3.5 | I77: 63977
A78: Coward town | B78: Florence County | C78: 612 | D78: 568 | E78: =(RawData3[[#This Row],[2022 Population Estimate]]-RawData3[[#This Row],[2021 Population Estimate]])/RawData3[[#This Row],[2021 Population Estimate]] -> -0.07189542484 | F78: 28.5 | H78: 3.2 | I78: 47813
A79: Cowpens town | B79: Spartanburg County | C79: 1990 | D79: 1862 | E79: =(RawData3[[#This Row],[2022 Population Estimate]]-RawData3[[#This Row],[2021 Population Estimate]])/RawData3[[#This Row],[2021 Population Estimate]] -> -0.06432160804 | F79: 33.6 | H79: 3.1 | I79: 36585
A80: Cross Anchor CDP | B80: Spartanburg County | C80: 51 | D80: 25 | E80: =(RawData3[[#This Row],[2022 Population Estimate]]-RawData3[[#This Row],[2021 Population Estimate]])/RawData3[[#This Row],[2021 Population Estimate]] -> -0.5098039216 | F80: 100 | H80: 3.1 | I80: 61955
A81: Cross Hill town | B81: Laurens County | C81: 553 | D81: 522 | E81: =(RawData3[[#This Row],[2022 Population Estimate]]-RawData3[[#This Row],[2021 Population Estimate]])/RawData3[[#This Row],[2021 Population Estimate]] -> -0.05605786618 | F81: 16.3 | H81: 3.4 | I81: 39625
A82: Dalzell CDP | B82: Sumter County | C82: 3319 | D82: 3417 | E82: =(RawData3[[#This Row],[2022 Population Estimate]]-RawData3[[#This Row],[2021 Population Estimate]])/RawData3[[#This Row],[2021 Population Estimate]] -> 0.02952696595 | F82: 13.4 | H82: 3.8 | I82: 62159
A83: Darlington city | B83: Darlington County | C83: 6153 | D83: 6172 | E83: =(RawData3[[#This Row],[2022 Population Estimate]]-RawData3[[#This Row],[2021 Population Estimate]])/RawData3[[#This Row],[2021 Population Estimate]] -> 0.00308792459 | F83: 30.9 | H83: 3.5 | I83: 33750
A84: Denmark city | B84: Bamberg County | C84: 3186 | D84: 3156 | E84: =(RawData3[[#This Row],[2022 Population Estimate]]-RawData3[[#This Row],[2021 Population Estimate]])/RawData3[[#This Row],[2021 Population Estimate]] -> -0.009416195857 | F84: 29.6 | H84: 5.5 | I84: 32679
A85: Dentsville CDP | B85: Richland County | C85: 15245 | D85: 16399 | E85: =(RawData3[[#This Row],[2022 Population Estimate]]-RawData3[[#This Row],[2021 Population Estimate]])/RawData3[[#This Row],[2021 Population Estimate]] -> 0.07569694982 | F85: 20.8 | H85: 3.3 | I85: 37590
A86: Dillon city | B86: Dillon County | C86: 6354 | D86: 6454 | E86: =(RawData3[[#This Row],[2022 Population Estimate]]-RawData3[[#This Row],[2021 Population Estimate]])/RawData3[[#This Row],[2021 Population Estimate]] -> 0.01573811772 | F86: 39.6 | H86: 4.6 | I86: 34086
A87: Donalds town | B87: Abbeville County | C87: 348 | D87: 374 | E87: =(RawData3[[#This Row],[2022 Population Estimate]]-RawData3[[#This Row],[2021 Population Estimate]])/RawData3[[#This Row],[2021 Population Estimate]] -> 0.07471264368 | F87: 20.3 | H87: 3.9 | I87: 50000
A88: Due West town | B88: Abbeville County | C88: 1078 | D88: 1148 | E88: =(RawData3[[#This Row],[2022 Population Estimate]]-RawData3[[#This Row],[2021 Population Estimate]])/RawData3[[#This Row],[2021 Population Estimate]] -> 0.06493506494 | F88: 10.3 | H88: 3.9 | I88: 50417
A89: Duncan town | B89: Spartanburg County | C89: 3937 | D89: 4053 | E89: =(RawData3[[#This Row],[2022 Population Estimate]]-RawData3[[#This Row],[2021 Population Estimate]])/RawData3[[#This Row],[2021 Population Estimate]] -> 0.02946405893 | F89: 18.4 | H89: 3.1 | I89: 58112
A90: Dunean CDP | B90: Greenville County | C90: 3292 | D90: 3427 | E90: =(RawData3[[#This Row],[2022 Population Estimate]]-RawData3[[#This Row],[2021 Population Estimate]])/RawData3[[#This Row],[2021 Population Estimate]] -> 0.04100850547 | F90: 12.3 | H90: 2.8 | I90: 52500
A91: Easley city | B91: Anderson County | C91: 22643 | D91: 23135 | E91: =(RawData3[[#This Row],[2022 Population Estimate]]-RawData3[[#This Row],[2021 Population Estimate]])/RawData3[[#This Row],[2021 Population Estimate]] -> 0.02172856954 | F91: 12.7 | H91: 3 | I91: 62551
A92: East Gaffney CDP | B92: Cherokee County | C92: 2773 | D92: 2972 | E92: =(RawData3[[#This Row],[2022 Population Estimate]]-RawData3[[#This Row],[2021 Population Estimate]])/RawData3[[#This Row],[2021 Population Estimate]] -> 0.0717634331 | F92: 26.4 | H92: 4.1 | I92: 30758
A93: East Sumter CDP | B93: Sumter County | C93: 931 | D93: 789 | E93: =(RawData3[[#This Row],[2022 Population Estimate]]-RawData3[[#This Row],[2021 Population Estimate]])/RawData3[[#This Row],[2021 Population Estimate]] -> -0.1525241676 | F93: 28.7 | H93: 3.8 | I93: 53970
A94: Eastover town | B94: Richland County | C94: 564 | D94: 616 | E94: =(RawData3[[#This Row],[2022 Population Estimate]]-RawData3[[#This Row],[2021 Population Estimate]])/RawData3[[#This Row],[2021 Population Estimate]] -> 0.09219858156 | F94: 37.6 | H94: 3.3 | I94: 21620
A95: Edgefield town | B95: Edgefield County | C95: 4434 | D95: 2504 | E95: =(RawData3[[#This Row],[2022 Population Estimate]]-RawData3[[#This Row],[2021 Population Estimate]])/RawData3[[#This Row],[2021 Population Estimate]] -> -0.4352728913 | F95: 29.7 | H95: 3.3 | I95: 32200
A96: Edisto Beach town | B96: Charleston County | C96: 759 | D96: 884 | E96: =(RawData3[[#This Row],[2022 Population Estimate]]-RawData3[[#This Row],[2021 Population Estimate]])/RawData3[[#This Row],[2021 Population Estimate]] -> 0.1646903821 | F96: 3.5 | H96: 2.8 | I96: 84063
A97: Edisto CDP | B97: Orangeburg County | C97: 1991 | D97: 1904 | E97: =(RawData3[[#This Row],[2022 Population Estimate]]-RawData3[[#This Row],[2021 Population Estimate]])/RawData3[[#This Row],[2021 Population Estimate]] -> -0.04369663486 | F97: 24.6 | H97: 5 | I97: 44495
A98: Ehrhardt town | B98: Bamberg County | C98: 431 | D98: 462 | E98: =(RawData3[[#This Row],[2022 Population Estimate]]-RawData3[[#This Row],[2021 Population Estimate]])/RawData3[[#This Row],[2021 Population Estimate]] -> 0.07192575406 | F98: 5.6 | H98: 5.5 | I98: 35923
A99: Elgin CDP | B99: Lancaster County | C99: 2876 | D99: 2882 | E99: =(RawData3[[#This Row],[2022 Population Estimate]]-RawData3[[#This Row],[2021 Population Estimate]])/RawData3[[#This Row],[2021 Population Estimate]] -> 0.002086230876 | F99: 6 | H99: 3.6 | I99: 72898
A100: Elgin town | B100: Kershaw County | C100: 1999 | D100: 2065 | E100: =(RawData3[[#This Row],[2022 Population Estimate]]-RawData3[[#This Row],[2021 Population Estimate]])/RawData3[[#This Row],[2021 Population Estimate]] -> 0.03301650825 | F100: 6.2 | H100: 3.3 | I100: 83611
A101: Elko town | B101: Barnwell County | C101: 242 | D101: 213 | E101: =(RawData3[[#This Row],[2022 Population Estimate]]-RawData3[[#This Row],[2021 Population Estimate]])/RawData3[[#This Row],[2021 Population Estimate]] -> -0.1198347107 | F101: 8.9 | H101: 4.7 | I101: 38854
A102: Elloree town | B102: Orangeburg County | C102: 980 | D102: 993 | E102: =(RawData3[[#This Row],[2022 Population Estimate]]-RawData3[[#This Row],[2021 Population Estimate]])/RawData3[[#This Row],[2021 Population Estimate]] -> 0.01326530612 | F102: 21.1 | H102: 5 | I102: 30967
A103: Enoree CDP | B103: Laurens County | C103: 468 | D103: 441 | E103: =(RawData3[[#This Row],[2022 Population Estimate]]-RawData3[[#This Row],[2021 Population Estimate]])/RawData3[[#This Row],[2021 Population Estimate]] -> -0.05769230769 | F103: 41.5 | H103: 3.4 | I103: 52077
A104: Estill town | B104: Hampton County | C104: 2426 | D104: 2230 | E104: =(RawData3[[#This Row],[2022 Population Estimate]]-RawData3[[#This Row],[2021 Population Estimate]])/RawData3[[#This Row],[2021 Population Estimate]] -> -0.08079142622 | F104: 34.8 | H104: 2.9 | I104: 33405
A105: Eureka Mill CDP | B105: Chester County | C105: 2036 | D105: 1889 | E105: =(RawData3[[#This Row],[2022 Population Estimate]]-RawData3[[#This Row],[2021 Population Estimate]])/RawData3[[#This Row],[2021 Population Estimate]] -> -0.07220039293 | F105: 38.1 | H105: 4.3 | I105: 33802
A106: Eutawville town | B106: Orangeburg County | C106: 419 | D106: 396 | E106: =(RawData3[[#This Row],[2022 Population Estimate]]-RawData3[[#This Row],[2021 Population Estimate]])/RawData3[[#This Row],[2021 Population Estimate]] -> -0.05489260143 | F106: 26.3 | H106: 5 | I106: 80000
A107: Fair Play CDP | B107: Anderson County | C107: 320 | D107: 574 | E107: =(RawData3[[#This Row],[2022 Population Estimate]]-RawData3[[#This Row],[2021 Population Estimate]])/RawData3[[#This Row],[2021 Population Estimate]] -> 0.79375 | F107: 29.6 | H107: 3 | I107: 109511
A108: Fairfax town | B108: Hampton County | C108: 2142 | D108: 2035 | E108: =(RawData3[[#This Row],[2022 Population Estimate]]-RawData3[[#This Row],[2021 Population Estimate]])/RawData3[[#This Row],[2021 Population Estimate]] -> -0.04995331466 | F108: 24.2 | H108: 2.9 | I108: 42760
A109: Fairforest CDP | B109: Spartanburg County | C109: 1565 | D109: 1626 | E109: =(RawData3[[#This Row],[2022 Population Estimate]]-RawData3[[#This Row],[2021 Population Estimate]])/RawData3[[#This Row],[2021 Population Estimate]] -> 0.03897763578 | F109: 22.4 | H109: 3.1 | I109: 49650
A110: Fingerville CDP | B110: Spartanburg County | C110: 49 | D110: 99 | E110: =(RawData3[[#This Row],[2022 Population Estimate]]-RawData3[[#This Row],[2021 Population Estimate]])/RawData3[[#This Row],[2021 Population Estimate]] -> 1.020408163 | F110: 79.8 | H110: 3.1 | I110: 61955
A111: Five Forks CDP | B111: Greenville County | C111: 19158 | D111: 18592 | E111: =(RawData3[[#This Row],[2022 Population Estimate]]-RawData3[[#This Row],[2021 Population Estimate]])/RawData3[[#This Row],[2021 Population Estimate]] -> -0.02954379372 | F111: 2.2 | H111: 2.8 | I111: 133750
A112: Florence city | B112: Florence County | C112: 39816 | D112: 39931 | E112: =(RawData3[[#This Row],[2022 Population Estimate]]-RawData3[[#This Row],[2021 Population Estimate]])/RawData3[[#This Row],[2021 Population Estimate]] -> 0.002888286116 | F112: 18.8 | H112: 3.2 | I112: 56031
A113: Folly Beach city | B113: Charleston County | C113: 1035 | D113: 1020 | E113: =(RawData3[[#This Row],[2022 Population Estimate]]-RawData3[[#This Row],[2021 Population Estimate]])/RawData3[[#This Row],[2021 Population Estimate]] -> -0.01449275362 | F113: 16.7 | H113: 2.8 | I113: 88424
A114: Forest Acres city | B114: Richland County | C114: 10621 | D114: 10514 | E114: =(RawData3[[#This Row],[2022 Population Estimate]]-RawData3[[#This Row],[2021 Population Estimate]])/RawData3[[#This Row],[2021 Population Estimate]] -> -0.01007438094 | F114: 9.7 | H114: 3.3 | I114: 68110
A115: Forestbrook CDP | B115: Horry County | C115: 7256 | D115: 7414 | E115: =(RawData3[[#This Row],[2022 Population Estimate]]-RawData3[[#This Row],[2021 Population Estimate]])/RawData3[[#This Row],[2021 Population Estimate]] -> 0.02177508269 | F115: 7.8 | H115: 3.9 | I115: 66172
A116: Fort Lawn town | B116: Chester County | C116: 947 | D116: 1149 | E116: =(RawData3[[#This Row],[2022 Population Estimate]]-RawData3[[#This Row],[2021 Population Estimate]])/RawData3[[#This Row],[2021 Population Estimate]] -> 0.2133051742 | F116: 11.2 | H116: 4.3 | I116: 49844
A117: Fort Mill town | B117: Lancaster County | C117: 24069 | D117: 26022 | E117: =(RawData3[[#This Row],[2022 Population Estimate]]-RawData3[[#This Row],[2021 Population Estimate]])/RawData3[[#This Row],[2021 Population Estimate]] -> 0.08114171756 | F117: 4.6 | H117: 2.7 | I117: 128125
A118: Fountain Inn city | B118: Laurens County | C118: 10237 | D118: 10675 | E118: =(RawData3[[#This Row],[2022 Population Estimate]]-RawData3[[#This Row],[2021 Population Estimate]])/RawData3[[#This Row],[2021 Population Estimate]] -> 0.04278597245 | F118: 15.3 | H118: 3.4 | I118: 73665
A119: Furman town | B119: Hampton County | C119: 545 | D119: 559 | E119: =(RawData3[[#This Row],[2022 Population Estimate]]-RawData3[[#This Row],[2021 Population Estimate]])/RawData3[[#This Row],[2021 Population Estimate]] -> 0.02568807339 | F119: 2.9 | H119: 2.9 | I119: 77292
A120: Gadsden CDP | B120: Richland County | C120: 919 | D120: 1373 | E120: =(RawData3[[#This Row],[2022 Population Estimate]]-RawData3[[#This Row],[2021 Population Estimate]])/RawData3[[#This Row],[2021 Population Estimate]] -> 0.4940152339 | F120: 23.5 | H120: 3.3 | I120: 36966
A121: Gaffney city | B121: Cherokee County | C121: 12560 | D121: 12651 | E121: =(RawData3[[#This Row],[2022 Population Estimate]]-RawData3[[#This Row],[2021 Population Estimate]])/RawData3[[#This Row],[2021 Population Estimate]] -> 0.00724522293 | F121: 23.1 | H121: 4.1 | I121: 38059
A122: Gantt CDP | B122: Greenville County | C122: 14790 | D122: 14276 | E122: =(RawData3[[#This Row],[2022 Population Estimate]]-RawData3[[#This Row],[2021 Population Estimate]])/RawData3[[#This Row],[2021 Population Estimate]] -> -0.03475321163 | F122: 29.4 | H122: 2.8 | I122: 43796
A123: Garden City CDP | B123: Horry County | C123: 10600 | D123: 10885 | E123: =(RawData3[[#This Row],[2022 Population Estimate]]-RawData3[[#This Row],[2021 Population Estimate]])/RawData3[[#This Row],[2021 Population Estimate]] -> 0.02688679245 | F123: 11.4 | H123: 3.9 | I123: 51781
A124: Gaston town | B124: Lexington County | C124: 2089 | D124: 1991 | E124: =(RawData3[[#This Row],[2022 Population Estimate]]-RawData3[[#This Row],[2021 Population Estimate]])/RawData3[[#This Row],[2021 Population Estimate]] -> -0.04691239828 | F124: 24 | H124: 2.7 | I124: 55625
A125: Gayle Mill CDP | B125: Chester County | C125: 983 | D125: 1082 | E125: =(RawData3[[#This Row],[2022 Population Estimate]]-RawData3[[#This Row],[2021 Population Estimate]])/RawData3[[#This Row],[2021 Population Estimate]] -> 0.1007121058 | F125: 24.4 | H125: 4.3 | I125: 74022
A126: Georgetown city | B126: Georgetown County | C126: 8435 | D126: 8465 | E126: =(RawData3[[#This Row],[2022 Population Estimate]]-RawData3[[#This Row],[2021 Population Estimate]])/RawData3[[#This Row],[2021 Population Estimate]] -> 0.003556609366 | F126: 15.5 | H126: 3.7 | I126: 50000
A127: Gifford town | B127: Hampton County | C127: 176 | D127: 201 | E127: =(RawData3[[#This Row],[2022 Population Estimate]]-RawData3[[#This Row],[2021 Population Estimate]])/RawData3[[#This Row],[2021 Population Estimate]] -> 0.1420454545 | F127: 15.9 | H127: 2.9 | I127: 32833
A128: Gilbert town | B128: Lexington County | C128: 580 | D128: 563 | E128: =(RawData3[[#This Row],[2022 Population Estimate]]-RawData3[[#This Row],[2021 Population Estimate]])/RawData3[[#This Row],[2021 Population Estimate]] -> -0.02931034483 | F128: 5 | H128: 2.7 | I128: 72500
A129: Glendale CDP | B129: Spartanburg County | C129: 275 | D129: 254 | E129: =(RawData3[[#This Row],[2022 Population Estimate]]-RawData3[[#This Row],[2021 Population Estimate]])/RawData3[[#This Row],[2021 Population Estimate]] -> -0.07636363636 | F129: 28 | H129: 3.1 | I129: 47917
A130: Gloverville CDP | B130: Aiken County | C130: 3102 | D130: 3099 | E130: =(RawData3[[#This Row],[2022 Population Estimate]]-RawData3[[#This Row],[2021 Population Estimate]])/RawData3[[#This Row],[2021 Population Estimate]] -> -0.0009671179884 | F130: 12.8 | H130: 3.2 | I130: 46643
A131: Golden Grove CDP | B131: Anderson County | C131: 3317 | D131: 3282 | E131: =(RawData3[[#This Row],[2022 Population Estimate]]-RawData3[[#This Row],[2021 Population Estimate]])/RawData3[[#This Row],[2021 Population Estimate]] -> -0.01055170335 | F131: 10.7 | H131: 3 | I131: 67147
A132: Goose Creek city | B132: Berkeley County | C132: 44502 | D132: 45858 | E132: =(RawData3[[#This Row],[2022 Population Estimate]]-RawData3[[#This Row],[2021 Population Estimate]])/RawData3[[#This Row],[2021 Population Estimate]] -> 0.03047054065 | F132: 7.3 | H132: 3.1 | I132: 84041
A133: Govan town | B133: Bamberg County | C133: 55 | D133: 56 | E133: =(RawData3[[#This Row],[2022 Population Estimate]]-RawData3[[#This Row],[2021 Population Estimate]])/RawData3[[#This Row],[2021 Population Estimate]] -> 0.01818181818 | F133: 21.4 | H133: 5.5 | I133: 43920
A134: Gramling CDP | B134: Spartanburg County | C134: 60 | D134: 79 | E134: =(RawData3[[#This Row],[2022 Population Estimate]]-RawData3[[#This Row],[2021 Population Estimate]])/RawData3[[#This Row],[2021 Population Estimate]] -> 0.3166666667 | F134: 0 | H134: 3.1 | I134: 61955
A135: Graniteville CDP | B135: Aiken County | C135: 2625 | D135: 2465 | E135: =(RawData3[[#This Row],[2022 Population Estimate]]-RawData3[[#This Row],[2021 Population Estimate]])/RawData3[[#This Row],[2021 Population Estimate]] -> -0.06095238095 | F135: 29.8 | H135: 3.2 | I135: 32339
A136: Gray Court town | B136: Laurens County | C136: 796 | D136: 778 | E136: =(RawData3[[#This Row],[2022 Population Estimate]]-RawData3[[#This Row],[2021 Population Estimate]])/RawData3[[#This Row],[2021 Population Estimate]] -> -0.02261306533 | F136: 21.9 | H136: 3.4 | I136: 45313
A137: Great Falls town | B137: Chester County | C137: 1860 | D137: 1669 | E137: =(RawData3[[#This Row],[2022 Population Estimate]]-RawData3[[#This Row],[2021 Population Estimate]])/RawData3[[#This Row],[2021 Population Estimate]] -> -0.102688172 | F137: 34.6 | H137: 4.3 | I137: 28804
A138: Greeleyville town | B138: Williamsburg County | C138: 389 | D138: 418 | E138: =(RawData3[[#This Row],[2022 Population Estimate]]-RawData3[[#This Row],[2021 Population Estimate]])/RawData3[[#This Row],[2021 Population Estimate]] -> 0.07455012853 | F138: 24.9 | H138: 4.8 | I138: 40417
A139: Greenville city | B139: Greenville County | C139: 69725 | D139: 70838 | E139: =(RawData3[[#This Row],[2022 Population Estimate]]-RawData3[[#This Row],[2021 Population Estimate]])/RawData3[[#This Row],[2021 Population Estimate]] -> 0.01596271065 | F139: 14.4 | H139: 2.8 | I139: 65519
A140: Greenwood city | B140: Greenwood County | C140: 22363 | D140: 22528 | E140: =(RawData3[[#This Row],[2022 Population Estimate]]-RawData3[[#This Row],[2021 Population Estimate]])/RawData3[[#This Row],[2021 Population Estimate]] -> 0.007378258731 | F140: 24.7 | H140: 3.7 | I140: 38884
A141: Greer city | B141: Greenville County | C141: 35151 | D141: 37010 | E141: =(RawData3[[#This Row],[2022 Population Estimate]]-RawData3[[#This Row],[2021 Population Estimate]])/RawData3[[#This Row],[2021 Population Estimate]] -> 0.05288611988 | F141: 10.6 | H141: 2.5 | I141: 73534
A142: Hampton town | B142: Hampton County | C142: 2907 | D142: 2725 | E142: =(RawData3[[#This Row],[2022 Population Estimate]]-RawData3[[#This Row],[2021 Population Estimate]])/RawData3[[#This Row],[2021 Population Estimate]] -> -0.06260749914 | F142: 9.8 | H142: 2.9 | I142: 50875
A143: Hanahan city | B143: Berkeley County | C143: 20381 | D143: 20731 | E143: =(RawData3[[#This Row],[2022 Population Estimate]]-RawData3[[#This Row],[2021 Population Estimate]])/RawData3[[#This Row],[2021 Population Estimate]] -> 0.01717285707 | F143: 13 | H143: 3.1 | I143: 79305
A144: Hardeeville city | B144: Beaufort County | C144: 7228 | D144: 8048 | E144: =(RawData3[[#This Row],[2022 Population Estimate]]-RawData3[[#This Row],[2021 Population Estimate]])/RawData3[[#This Row],[2021 Population Estimate]] -> 0.1134477034 | F144: 8.8 | H144: 3.1 | I144: 75948
A145: Harleyville town | B145: Dorchester County | C145: 883 | D145: 879 | E145: =(RawData3[[#This Row],[2022 Population Estimate]]-RawData3[[#This Row],[2021 Population Estimate]])/RawData3[[#This Row],[2021 Population Estimate]] -> -0.004530011325 | F145: 31.3 | H145: 2.9 | I145: 59595
A146: Hartsville city | B146: Darlington County | C146: 7565 | D146: 7450 | E146: =(RawData3[[#This Row],[2022 Population Estimate]]-RawData3[[#This Row],[2021 Population Estimate]])/RawData3[[#This Row],[2021 Population Estimate]] -> -0.01520158625 | F146: 26.8 | H146: 3.5 | I146: 46230
A147: Heath Springs town | B147: Lancaster County | C147: 745 | D147: 800 | E147: =(RawData3[[#This Row],[2022 Population Estimate]]-RawData3[[#This Row],[2021 Population Estimate]])/RawData3[[#This Row],[2021 Population Estimate]] -> 0.07382550336 | F147: 18.3 | H147: 3.6 | I147: 48462
A148: Hemingway town | B148: Williamsburg County | C148: 555 | D148: 421 | E148: =(RawData3[[#This Row],[2022 Population Estimate]]-RawData3[[#This Row],[2021 Population Estimate]])/RawData3[[#This Row],[2021 Population Estimate]] -> -0.2414414414 | F148: 7.7 | H148: 4.8 | I148: 36042
A149: Hickory Grove town | B149: York County | C149: 489 | D149: 541 | E149: =(RawData3[[#This Row],[2022 Population Estimate]]-RawData3[[#This Row],[2021 Population Estimate]])/RawData3[[#This Row],[2021 Population Estimate]] -> 0.1063394683 | F149: 15.2 | H149: 3.1 | I149: 56250
A150: Hilda town | B150: Barnwell County | C150: 405 | D150: 430 | E150: =(RawData3[[#This Row],[2022 Population Estimate]]-RawData3[[#This Row],[2021 Population Estimate]])/RawData3[[#This Row],[2021 Population Estimate]] -> 0.06172839506 | F150: 28.6 | H150: 4.7 | I150: 32500
A151: Hilton Head Island town | B151: Beaufort County | C151: 38068 | D151: 37708 | E151: =(RawData3[[#This Row],[2022 Population Estimate]]-RawData3[[#This Row],[2021 Population Estimate]])/RawData3[[#This Row],[2021 Population Estimate]] -> -0.009456761585 | F151: 7.6 | H151: 2.7 | I151: 93694
A152: Hodges town | B152: Greenwood County | C152: 164 | D152: 173 | E152: =(RawData3[[#This Row],[2022 Population Estimate]]-RawData3[[#This Row],[2021 Population Estimate]])/RawData3[[#This Row],[2021 Population Estimate]] -> 0.05487804878 | F152: 31.2 | H152: 3.7 | I152: 55357
A153: Holly Hill town | B153: Orangeburg County | C153: 1346 | D153: 1384 | E153: =(RawData3[[#This Row],[2022 Population Estimate]]-RawData3[[#This Row],[2021 Population Estimate]])/RawData3[[#This Row],[2021 Population Estimate]] -> 0.02823179792 | F153: 40 | H153: 5 | I153: 24185
A154: Hollywood town | B154: Dorchester County | C154: 5319 | D154: 5397 | E154: =(RawData3[[#This Row],[2022 Population Estimate]]-RawData3[[#This Row],[2021 Population Estimate]])/RawData3[[#This Row],[2021 Population Estimate]] -> 0.0146644106 | F154: 6.5 | H154: 2.9 | I154: 77191
A155: Homeland Park CDP | B155: Anderson County | C155: 6790 | D155: 7451 | E155: =(RawData3[[#This Row],[2022 Population Estimate]]-RawData3[[#This Row],[2021 Population Estimate]])/RawData3[[#This Row],[2021 Population Estimate]] -> 0.09734904271 | F155: 34.2 | H155: 3 | I155: 37308
A156: Honea Path town | B156: Anderson County | C156: 3659 | D156: 3662 | E156: =(RawData3[[#This Row],[2022 Population Estimate]]-RawData3[[#This Row],[2021 Population Estimate]])/RawData3[[#This Row],[2021 Population Estimate]] -> 0.0008198961465 | F156: 23.1 | H156: 3 | I156: 50375
A157: Hopkins CDP | B157: Richland County | C157: 1757 | D157: 1738 | E157: =(RawData3[[#This Row],[2022 Population Estimate]]-RawData3[[#This Row],[2021 Population Estimate]])/RawData3[[#This Row],[2021 Population Estimate]] -> -0.01081388731 | F157: 21.1 | H157: 3.3 | I157: 57262
A158: India Hook CDP | B158: York County | C158: 4092 | D158: 4385 | E158: =(RawData3[[#This Row],[2022 Population Estimate]]-RawData3[[#This Row],[2021 Population Estimate]])/RawData3[[#This Row],[2021 Population Estimate]] -> 0.07160312805 | F158: 2.3 | H158: 3.1 | I158: 101616
A159: Inman city | B159: Spartanburg County | C159: 2896 | D159: 2987 | E159: =(RawData3[[#This Row],[2022 Population Estimate]]-RawData3[[#This Row],[2021 Population Estimate]])/RawData3[[#This Row],[2021 Population Estimate]] -> 0.03142265193 | F159: 16.5 | H159: 3.1 | I159: 50938
A160: Inman Mills CDP | B160: Spartanburg County | C160: 782 | D160: 956 | E160: =(RawData3[[#This Row],[2022 Population Estimate]]-RawData3[[#This Row],[2021 Population Estimate]])/RawData3[[#This Row],[2021 Population Estimate]] -> 0.2225063939 | F160: 2.9 | H160: 3.1 | I160: 41007
A161: Irmo town | B161: Lexington County | C161: 11581 | D161: 11685 | E161: =(RawData3[[#This Row],[2022 Population Estimate]]-RawData3[[#This Row],[2021 Population Estimate]])/RawData3[[#This Row],[2021 Population Estimate]] -> 0.008980226233 | F161: 6.6 | H161: 2.7 | I161: 77656
A162: Irwin CDP | B162: Lancaster County | C162: 1276 | D162: 1868 | E162: =(RawData3[[#This Row],[2022 Population Estimate]]-RawData3[[#This Row],[2021 Population Estimate]])/RawData3[[#This Row],[2021 Population Estimate]] -> 0.4639498433 | F162: 41.1 | H162: 3.6 | I162: 40139
A163: Islandton CDP | B163: Colleton County | C163: 21 | D163: 40 | E163: =(RawData3[[#This Row],[2022 Population Estimate]]-RawData3[[#This Row],[2021 Population Estimate]])/RawData3[[#This Row],[2021 Population Estimate]] -> 0.9047619048 | F163: 0 | H163: 3.5 | I163: 46795
A164: Isle of Palms city | B164: Charleston County | C164: 4318 | D164: 4347 | E164: =(RawData3[[#This Row],[2022 Population Estimate]]-RawData3[[#This Row],[2021 Population Estimate]])/RawData3[[#This Row],[2021 Population Estimate]] -> 0.006716072256 | F164: 2.1 | H164: 2.8 | I164: 160417
A165: Iva town | B165: Anderson County | C165: 1253 | D165: 1030 | E165: =(RawData3[[#This Row],[2022 Population Estimate]]-RawData3[[#This Row],[2021 Population Estimate]])/RawData3[[#This Row],[2021 Population Estimate]] -> -0.1779728651 | F165: 33.9 | H165: 3 | I165: 22760
A166: Jackson town | B166: Aiken County | C166: 2024 | D166: 1882 | E166: =(RawData3[[#This Row],[2022 Population Estimate]]-RawData3[[#This Row],[2021 Population Estimate]])/RawData3[[#This Row],[2021 Population Estimate]] -> -0.07015810277 | F166: 9.1 | H166: 3.2 | I166: 36632
A167: Jacksonboro CDP | B167: Colleton County | C167: 222 | D167: 270 | E167: =(RawData3[[#This Row],[2022 Population Estimate]]-RawData3[[#This Row],[2021 Population Estimate]])/RawData3[[#This Row],[2021 Population Estimate]] -> 0.2162162162 | F167: 15.9 | H167: 3.5 | I167: 54896
A168: James Island town | B168: Charleston County | C168: 11618 | D168: 11689 | E168: =(RawData3[[#This Row],[2022 Population Estimate]]-RawData3[[#This Row],[2021 Population Estimate]])/RawData3[[#This Row],[2021 Population Estimate]] -> 0.006111206748 | F168: 4.1 | H168: 2.8 | I168: 95364
A169: Jamestown town | B169: Berkeley County | C169: 91 | D169: 78 | E169: =(RawData3[[#This Row],[2022 Population Estimate]]-RawData3[[#This Row],[2021 Population Estimate]])/RawData3[[#This Row],[2021 Population Estimate]] -> -0.1428571429 | F169: 6.4 | H169: 3.1 | I169: 77874
A170: Jefferson town | B170: Chesterfield County | C170: 896 | D170: 830 | E170: =(RawData3[[#This Row],[2022 Population Estimate]]-RawData3[[#This Row],[2021 Population Estimate]])/RawData3[[#This Row],[2021 Population Estimate]] -> -0.07366071429 | F170: 24.7 | H170: 3.6 | I170: 35208
A171: Jenkinsville town | B171: Fairfield County | C171: 22 | D171: 54 | E171: =(RawData3[[#This Row],[2022 Population Estimate]]-RawData3[[#This Row],[2021 Population Estimate]])/RawData3[[#This Row],[2021 Population Estimate]] -> 1.454545455 | F171: 51.9 | H171: 4.7 | I171: 35833
A172: Joanna CDP | B172: Laurens County | C172: 1470 | D172: 1406 | E172: =(RawData3[[#This Row],[2022 Population Estimate]]-RawData3[[#This Row],[2021 Population Estimate]])/RawData3[[#This Row],[2021 Population Estimate]] -> -0.04353741497 | F172: 14.6 | H172: 3.4 | I172: 52381
A173: Johnsonville city | B173: Williamsburg County | C173: 1170 | D173: 1108 | E173: =(RawData3[[#This Row],[2022 Population Estimate]]-RawData3[[#This Row],[2021 Population Estimate]])/RawData3[[#This Row],[2021 Population Estimate]] -> -0.05299145299 | F173: 24.5 | H173: 4.8 | I173: 46528
A174: Johnston town | B174: Edgefield County | C174: 2248 | D174: 2375 | E174: =(RawData3[[#This Row],[2022 Population Estimate]]-RawData3[[#This Row],[2021 Population Estimate]])/RawData3[[#This Row],[2021 Population Estimate]] -> 0.05649466192 | F174: 32.4 | H174: 3.3 | I174: 31910
A175: Jonesville town | B175: Union County | C175: 989 | D175: 925 | E175: =(RawData3[[#This Row],[2022 Population Estimate]]-RawData3[[#This Row],[2021 Population Estimate]])/RawData3[[#This Row],[2021 Population Estimate]] -> -0.06471183013 | F175: 18.7 | H175: 4.7 | I175: 36023
A176: Judson CDP | B176: Greenville County | C176: 1513 | D176: 1879 | E176: =(RawData3[[#This Row],[2022 Population Estimate]]-RawData3[[#This Row],[2021 Population Estimate]])/RawData3[[#This Row],[2021 Population Estimate]] -> 0.241903503 | F176: 44.8 | H176: 2.8 | I176: 28207
A177: Kershaw town | B177: Lancaster County | C177: 2249 | D177: 2311 | E177: =(RawData3[[#This Row],[2022 Population Estimate]]-RawData3[[#This Row],[2021 Population Estimate]])/RawData3[[#This Row],[2021 Population Estimate]] -> 0.02756780791 | F177: 17 | H177: 3.6 | I177: 55481
A178: Kiawah Island town | B178: Charleston County | C178: 1964 | D178: 2130 | E178: =(RawData3[[#This Row],[2022 Population Estimate]]-RawData3[[#This Row],[2021 Population Estimate]])/RawData3[[#This Row],[2021 Population Estimate]] -> 0.08452138493 | F178: 2.8 | H178: 2.8 | I178: 214250
A179: Kingstree town | B179: Williamsburg County | C179: 3244 | D179: 3202 | E179: =(RawData3[[#This Row],[2022 Population Estimate]]-RawData3[[#This Row],[2021 Population Estimate]])/RawData3[[#This Row],[2021 Population Estimate]] -> -0.01294697904 | F179: 29.2 | H179: 4.8 | I179: 31227
A180: Kline town | B180: Barnwell County | C180: 202 | D180: 195 | E180: =(RawData3[[#This Row],[2022 Population Estimate]]-RawData3[[#This Row],[2021 Population Estimate]])/RawData3[[#This Row],[2021 Population Estimate]] -> -0.03465346535 | F180: 2.1 | H180: 4.7 | I180: 53750
A181: Ladson CDP | B181: Dorchester County | C181: 14711 | D181: 15298 | E181: =(RawData3[[#This Row],[2022 Population Estimate]]-RawData3[[#This Row],[2021 Population Estimate]])/RawData3[[#This Row],[2021 Population Estimate]] -> 0.03990211406 | F181: 13 | H181: 2.9 | I181: 74020
A182: Lake City city | B182: Florence County | C182: 6028 | D182: 6080 | E182: =(RawData3[[#This Row],[2022 Population Estimate]]-RawData3[[#This Row],[2021 Population Estimate]])/RawData3[[#This Row],[2021 Population Estimate]] -> 0.008626410086 | F182: 22.4 | H182: 3.2 | I182: 37013
A183: Lake Murray of Richland CDP | B183: Lexington County | C183: 6632 | D183: 6914 | E183: =(RawData3[[#This Row],[2022 Population Estimate]]-RawData3[[#This Row],[2021 Population Estimate]])/RawData3[[#This Row],[2021 Population Estimate]] -> 0.04252110977 | F183: 0.9 | H183: 2.7 | I183: 111477
A184: Lake Secession CDP | B184: Anderson County | C184: 1121 | D184: 1246 | E184: =(RawData3[[#This Row],[2022 Population Estimate]]-RawData3[[#This Row],[2021 Population Estimate]])/RawData3[[#This Row],[2021 Population Estimate]] -> 0.1115075825 | F184: 5.9 | H184: 3 | I184: 45759
A185: Lake View town | B185: Dillon County | C185: 665 | D185: 702 | E185: =(RawData3[[#This Row],[2022 Population Estimate]]-RawData3[[#This Row],[2021 Population Estimate]])/RawData3[[#This Row],[2021 Population Estimate]] -> 0.05563909774 | F185: 32.4 | H185: 4.6 | I185: 24853
A186: Lake Wylie CDP | B186: York County | C186: 13560 | D186: 14382 | E186: =(RawData3[[#This Row],[2022 Population Estimate]]-RawData3[[#This Row],[2021 Population Estimate]])/RawData3[[#This Row],[2021 Population Estimate]] -> 0.06061946903 | F186: 8.1 | H186: 3.1 | I186: 111424
A187: Lakewood CDP | B187: Sumter County | C187: 2862 | D187: 3135 | E187: =(RawData3[[#This Row],[2022 Population Estimate]]-RawData3[[#This Row],[2021 Population Estimate]])/RawData3[[#This Row],[2021 Population Estimate]] -> 0.09538784067 | F187: 10.4 | H187: 3.8 | I187: 47290
A188: Lamar town | B188: Darlington County | C188: 1074 | D188: 1217 | E188: =(RawData3[[#This Row],[2022 Population Estimate]]-RawData3[[#This Row],[2021 Population Estimate]])/RawData3[[#This Row],[2021 Population Estimate]] -> 0.1331471136 | F188: 26.8 | H188: 3.5 | I188: 40489
A189: Lancaster city | B189: Lancaster County | C189: 8489 | D189: 8592 | E189: =(RawData3[[#This Row],[2022 Population Estimate]]-RawData3[[#This Row],[2021 Population Estimate]])/RawData3[[#This Row],[2021 Population Estimate]] -> 0.01213334904 | F189: 31.6 | H189: 3.6 | I189: 37714
A190: Landrum city | B190: Spartanburg County | C190: 2465 | D190: 2504 | E190: =(RawData3[[#This Row],[2022 Population Estimate]]-RawData3[[#This Row],[2021 Population Estimate]])/RawData3[[#This Row],[2021 Population Estimate]] -> 0.01582150101 | F190: 13.5 | H190: 3.1 | I190: 41414
A191: Lane town | B191: Williamsburg County | C191: 447 | D191: 539 | E191: =(RawData3[[#This Row],[2022 Population Estimate]]-RawData3[[#This Row],[2021 Population Estimate]])/RawData3[[#This Row],[2021 Population Estimate]] -> 0.2058165548 | F191: 10.9 | H191: 4.8 | I191: 35658
A192: Langley CDP | B192: Aiken County | C192: 1975 | D192: 1776 | E192: =(RawData3[[#This Row],[2022 Population Estimate]]-RawData3[[#This Row],[2021 Population Estimate]])/RawData3[[#This Row],[2021 Population Estimate]] -> -0.1007594937 | F192: 30.2 | H192: 3.2 | I192: 47848
A193: Latta town | B193: Dillon County | C193: 1632 | D193: 1519 | E193: =(RawData3[[#This Row],[2022 Population Estimate]]-RawData3[[#This Row],[2021 Population Estimate]])/RawData3[[#This Row],[2021 Population Estimate]] -> -0.06924019608 | F193: 22.5 | H193: 4.6 | I193: 44330
A194: Laurel Bay CDP | B194: Beaufort County | C194: 5926 | D194: 5513 | E194: =(RawData3[[#This Row],[2022 Population Estimate]]-RawData3[[#This Row],[2021 Population Estimate]])/RawData3[[#This Row],[2021 Population Estimate]] -> -0.06969287884 | F194: 12.5 | H194: 3.1 | I194: 55658
A195: Laurens city | B195: Laurens County | C195: 9251 | D195: 9276 | E195: =(RawData3[[#This Row],[2022 Population Estimate]]-RawData3[[#This Row],[2021 Population Estimate]])/RawData3[[#This Row],[2021 Population Estimate]] -> 0.00270241055 | F195: 22.4 | H195: 3.4 | I195: 52585
A196: Lesslie CDP | B196: York County | C196: 3534 | D196: 3114 | E196: =(RawData3[[#This Row],[2022 Population Estimate]]-RawData3[[#This Row],[2021 Population Estimate]])/RawData3[[#This Row],[2021 Population Estimate]] -> -0.1188455008 | F196: 4.3 | H196: 3.1 | I196: 77500
A197: Lexington town | B197: Lexington County | C197: 23068 | D197: 23665 | E197: =(RawData3[[#This Row],[2022 Population Estimate]]-RawData3[[#This Row],[2021 Population Estimate]])/RawData3[[#This Row],[2021 Population Estimate]] -> 0.02588000694 | F197: 8.3 | H197: 2.7 | I197: 78164
A198: Liberty city | B198: Pickens County | C198: 3349 | D198: 3329 | E198: =(RawData3[[#This Row],[2022 Population Estimate]]-RawData3[[#This Row],[2021 Population Estimate]])/RawData3[[#This Row],[2021 Population Estimate]] -> -0.00597193192 | F198: 23.6 | H198: 3.1 | I198: 41898
A199: Lincolnville town | B199: Dorchester County | C199: 850 | D199: 641 | E199: =(RawData3[[#This Row],[2022 Population Estimate]]-RawData3[[#This Row],[2021 Population Estimate]])/RawData3[[#This Row],[2021 Population Estimate]] -> -0.2458823529 | F199: 23.6 | H199: 2.9 | I199: 41250
A200: Little Mountain town | B200: Newberry County | C200: 369 | D200: 456 | E200: =(RawData3[[#This Row],[2022 Population Estimate]]-RawData3[[#This Row],[2021 Population Estimate]])/RawData3[[#This Row],[2021 Population Estimate]] -> 0.2357723577 | F200: 4.4 | H200: 2.8 | I200: 88250
... 198 more rows
